{"text_format":"1","workbook":"xlsx","n_sheets":23,"sheets":["Cover Page","Facility Info","Operational Data","Operational Summary","Perf. Form 1","Energy Form 1","Permit Compliance","Improvements","Public Liasion","CO2 N2O","Residues","Water","Air (periodic)","Air (CEMS)","HCl","SO2","NOx","TOC","Particulates","CO 0.5 hourly","CO 95% 10 min","NH3","Template changes log"],"not_rendered":{"charts":8,"images":3,"macros":1,"external_links":1,"defined_names":23,"comments":0,"pivot_tables":0},"unopened":[],"bounds":{"document_bytes":16777216,"sheet_cells":100000,"rows_first":2000,"rows_last":500,"rows_between":2000,"halvings":0,"cell_chars":16384,"cell_head_chars":4096},"cells_cut":0,"cells_raw":0,"read":"whole","date_system":"1900"}

{"sheet":"Cover Page","index":0,"n_rows":53,"n_cols":11,"rows_kept":53,"cut":false,"hidden":false,"merged":[[48,2,48,3],[48,6,48,8],[52,2,52,3],[36,1,36,8],[40,2,40,8],[42,2,42,4],[44,2,44,4],[46,2,46,3],[46,6,46,8],[13,10,18,12],[34,1,34,8],[0,3,5,6],[7,1,23,8],[28,1,28,8],[30,1,30,8],[32,1,32,8]]}
[null,null,null,"Add company logo"]
[null,null,null,null,null,null,null,null,null,null,"Template version 25.1a (for incinerators) - 27/11/25"]
[]
[null,null,null,null,null,null,null,null,null,null,"Note that there is another version of this template available for co-incinerators"]
[]
[]
[]
[null,"Add photo"]
[]
[]
[]
[]
[null,null,null,null,null,null,null,null,null,null,"Notes:"]
[null,null,null,null,null,null,null,null,null,null,"This template may require adjustments by individual operators to meet specific reporting requirements as defined in the site Permit(s)"]
[]
[]
[]
[]
[]
[]
[]
[]
[]
[]
[]
[]
[]
[]
[null,"Annual Performance Report 2025"]
[]
[null,"Permit EPR/EP3034SN"]
[]
[null,"Eastcroft EfW Site"]
[]
[]
[]
[null,"WasteNotts (Reclamation) Limited"]
[]
[null,"Year:",2025]
[]
[null,"Address:","Incinerator Road, Off Cattle Market Road, Nottingham NG23JH"]
[]
[null,"Tel: ","0115 9869505"]
[]
[null,"Email: "]
[]
[null,"Prepared by:","Leigh Hornsby",null,null,"Position:","Environment Manager"]
[]
[null,"Approved by:","Stephen Lormor",null,null,"Position:","General Manager"]
[]
[null,"Version:",1]
[]
[null,"Issue Date:","2026-01-30"]

{"sheet":"Facility Info","index":1,"n_rows":22,"n_cols":11,"rows_kept":22,"cut":false,"hidden":false,"merged":[[4,0,17,8],[21,0,53,8],[4,10,13,13],[21,10,30,13]]}
[{"$f":"+'Cover Page'!$B$29","v":"Annual Performance Report 2025"},null,null,null,{"$f":"+'Cover Page'!$B$33","v":"Eastcroft EfW Site"}]
[]
["Plant Description and Design",null,null,null,null,null,null,null,null,null,"Notes:"]
[]
["The EfW facility currently comprises two incineration streams each capable of burning up to 11.7 tonnes/hour of municipal and light commercial and industrial waste. The plant has a theoretical capacity of just over 200,000 tonnes per annum; however with planned maintenance the annual throughput is approximately 185,000 tonnes. The site has planning permission to add a third line to the plant which is included in the scope of the Environmental Permit (EP3034SN) but has yet to be developed. \n\nThe facility generates around 50 tonnes of steam per hour with no electrical generation undertaken at the \nEastcroft facility. Steam is exported to a third party (Nottingham City Council, formerly EnviroEnergy) who operate a combined heat and power facility providing electricity and feeding into Nottingham's district heating network.",null,null,null,null,null,null,null,null,null,"Include summary of plant design, design capacity, no. of combustion lines, electrical and heat capacity and any other general information that describes the facility, its location and purpose "]
[]
[]
[]
[]
[]
[]
[]
[]
[]
[]
[]
[]
[]
[]
["Summary of Operational Processes and Procedures"]
[]
["Municipal waste and non-hazardous commercial/industrial/trade waste is delivered to site by lorry and tipped into one of two refuse bunkers inside the tipping hall. Deliveries are typically made from Monday to Saturday morning. Waste is transferred from the bunkers by grab crane into the feed chute of each incinerator stream. Waste is only fed to the incinerator if the temperature is above 850°C. \n\nEach incinerator stream has a moving grate on which the waste is burned, with preheated air being injected from below the grate. Combustion air is drawn from the tipping hall and boiler hall to reduce odours and dust levels in these areas and fed to the furnace via an air preheater which can raise the temperature of the air up to 160°C. Two auxiliary burners, fired on gas oil, are installed halfway up each combustion chamber to maintain temperatures above the 850°C threshold. The auxiliary burners are also used to pre-heat the incinerators before start up.\n\nAmmonium hydroxide is injected into the furnaces to reduce emissions of nitrogen oxides (this technique is known as selective non-catalytic reduction or SNCR). Hot gases from the combustion chamber pass to a boiler in which steam is raised and sent to the London Road Heat Station (operated by Nottingham City Council, formerly EnviroEnergy) for supply of heat to the district heating system and generation of electricity. Flue gases leaving the boiler are cooled to about 130°C in the economiser to achieve the correct temperature for gas treatment. \n\nIncinerator bottom ash is quenched in water and collected in a residuals bunker inside the building. The silo is emptied regularly and the bottom ash is sent for metal extraction and use as a substitute aggregate. \n\nFly ash entrained within the incinerator exhaust gases, together with any accumulations of dust removed from the walls of the economiser by the shot cleaning system, is treated in the air pollution control equipment. Each incinerator stream has its own dedicated air pollution control equipment. Cooled flue gases leaving the economiser are dosed with a mixture of hydrated lime, activated carbon and recirculated reagent, in order to reduce acid gases (by reaction with the lime), and other substances such as heavy metals and hydrocarbons (by adsorption onto the activated carbon). The exhaust gases and reagent particles are then filtered in a four compartment fabric filter to remove the dust burden. The fabric filters are regularly cleaned by reverse jet pulses, and the collected end product is stored in the APC residue silo. The APC residue silo is regularly emptied and the residue used to treat industrial acidic wastes before final disposal in a suitably licensed landfill site. \n\nThe treated exhaust gases from both streams are discharged via the 91m high stack. The final emissions from the municipal waste incinerator are continuously monitored for particulate matter, sulphur dioxide, nitrogen oxides, carbon monoxide, hydrogen chloride, volatile organic compounds, nitrous oxide, carbon dioxide and ammonia prior to entry into the main stack.",null,null,null,null,null,null,null,null,null,"Include summary of key processes and procedures such as (but not limited to); waste reception, control rooms, grate, bed and boiler, energy & heat  generation, cooling systems, residue management, emission controls, health and safety systems, maintenance"]

{"sheet":"Operational Data","index":2,"n_rows":65,"n_cols":10,"rows_kept":65,"cut":false,"hidden":false,"merged":[[4,9,23,9],[25,9,29,9],[53,0,57,0],[34,1,39,1],[3,1,3,2],[10,1,22,1],[26,1,28,1],[7,2,7,3]]}
[{"$f":"+'Cover Page'!$B$29","v":"Annual Performance Report 2025"},null,null,null,{"$f":"+'Cover Page'!$B$33","v":"Eastcroft EfW Site"}]
[]
["Operational Data"]
["Plant Size:",200000,null,"tonnes pa",null,null,null,null,null,"Notes:"]
["Nominal net thermal input:",54,"MWth",null,null,null,null,null,null,"* Export capacity = nominal generation capacity at the generator terminals minus nominal parasitic load.\n\n** CHP and district heating plants only - put N/A if no heat export.\n\n***  Combusted tonnage = tonnes delivered in period + (tonnes in bunker at start of period – tonnes in bunker at end of period), or equivalent calculation depending on plant type\n\n**** Availability Definition: The availability of a line is to be calculated by the number of hours the line reported Continuously Monitored emission levels to the Regulator through the calendar year divided by the total number of hours in that year. \n\nThe overall plant availability is calculated as the mean of all lines in the plant. For clarity this includes periods of abnormal operation.  \n\nRationale: The primary function of an Energy from Waste facility is the disposal of waste. It follows therefore that the availability of a plant is determined by the period of time a facility spends undertaking this activity.\n\n*****NCV of waste: This should be completed for all plants which have a boiler. Calculate using total thermal power produced by boiler/boiler efficiency, or other suitable calculation. \n"]
["Nominal electrical export capacity*:","N/A","MWe"]
["Nominal heat export capacity**:",51,"MWth"]
["No. of combustion lines:",2,"No. of steam turbines:",null,0]
[]
["Waste types received","Unit","Q1","Q2","Q3","Q4","Year Total","%"]
["Household / Local Authority","tonnes",44726.020000000004,39045.279999999999,29257.72,44326.299999999996,{"$f":"SUM(C11:F11)","v":157355.32},{"$f":"IF(G11>0,G11/$G$21,\"-\")","v":0.88710848042524748}]
["Commercial & Industrial ",null,5511.7000000000007,4672.22,2246.3599999999997,7594.42,{"$f":"SUM(C12:F12)","v":20024.700000000004},0.11289151957475259]
["Hazardous ",null,null,null,null,null,0,"-"]
["Clinical",null,null,null,null,null,0,"-"]
["Waste wood (biomass) ",null,null,null,null,null,0,"-"]
["Refuse Derived Fuel (incl. SRF) - H'hold/LA",null,null,null,null,null,{"$f":"SUM(C16:F16)","v":0},"-"]
["Refuse Derived Fuel (incl. SRF) - C&I",null,null,null,null,null,0,"-"]
["Other [Please specify]",null,null,null,null,null,0,"-"]
["Other [Please specify]",null,null,null,null,null,0,"-"]
["Other [Please specify]",null,null,null,null,null,0,"-"]
["Total waste received",null,{"$f":"SUM(C11:C20)","v":50237.72},{"$f":"SUM(D11:D20)","v":43717.5},{"$f":"SUM(E11:E20)","v":31504.080000000002},{"$f":"SUM(F11:F20)","v":51920.719999999994},177380.02]
["Rejected Waste ",null,null,null,null,null,{"$f":"SUM(C22:F22)","v":0},{"$f":"IF(G22>0,G22/$G$21,\"-\")","v":"-"}]
["Unprocessed waste transferred out",null,null,null,null,null,{"$f":"SUM(C23:F23)","v":0},{"$f":"IF(G23>0,G23/$G$21,\"-\")","v":"-"}]
["Total waste combusted ***",null,50237.72,43717.5,31504.080000000002,51920.719999999994,{"$f":"SUM(C24:F24)","v":177380.02}]
[]
["Energy Usage / Export","Unit","Q1","Q2","Q3","Q4","Year Total","KWh/te",null,"Password for protected cells\nA password has been set to prevent accidental  editing of cells with formulae. \nIf you still need to make an edit for some reason then the password = 1234"]
["Power generated at generator terminals","MWh",null,null,null,null,{"$f":"SUM(C27:F27)","v":0},{"$f":"IF(G27>0,G27*1000/$G$24,\"-\")","v":"-"}]
["Power exported to grid and other external user(s)",null,null,null,null,null,{"$f":"SUM(C28:F28)","v":0},{"$f":"IF(G28>0,G28*1000/$G$24,\"-\")","v":"-"}]
["Power imported",null,2787.82,2313,1921.777,2900.3639999999996,9922.9609999999993,{"$f":"IF(G29>0,G29*1000/$G$24,\"-\")","v":55.941819151897718}]
["Indicative parasitic load","%",{"$f":"IF(C27>0,(C27-C28)/C27,\"-\")","v":"-"},{"$f":"IF(D27>0,(D27-D28)/D27,\"-\")","v":"-"},"-","-",{"$f":"IF(G27>0,1-G28/(G27+G29),\"-\")","v":"-"}]
["Thermal Energy Exported **",null,92682,77386,58447,90759,{"$f":"SUM(C31:F31)","v":319274},{"$f":"IF(G31>0,G31*1000/$G$24,\"-\")","v":1799.9434209106528}]
["R1 value (if applicable)","R1","-","-","-","-"]
[]
["Waste Disposal & Recovery","Unit","Q1","Q2","Q3","Q4","Year Total","% inputs"]
["APC Residues - produced","tonnes",1285.04,1047.3200000000002,776.0200000000001,1218.3400000000001,{"$f":"SUM(C35:F35)","v":4326.72},{"$f":"IF(G35>0,G35/$G$24,\"-\")","v":2.4392375195357405E-2}]
["IBA - produced",null,9252.1,8375.8000000000011,5760.4400000000005,8599.9800000000014,31988.320000000007,{"$f":"IF(G36>0,G36/$G$24,\"-\")","v":0.18033778550707125}]
["Metals recycling",null,null,null,null,null,{"$f":"SUM(C37:F37)","v":0},"-"]
["Other",null,0,0,0,0,{"$f":"SUM(C38:F38)","v":0},"-"]
["Other",null,0,0,0,0,0,"-"]
["Other",null,0,0,0,0,0,"-"]
[]
["Raw Material Usage","Unit","Q1","Q2","Q3","Q4","Year Total","Qty./te"]
["Mains Water","ltrs",799000,691000,529000,828000,{"$f":"SUM(C43:F43)","v":2847000},{"$f":"IF(G43>0,G43/$G$24,\"-\")","v":16.050285708615888}]
["Other Water","ltrs",null,null,null,null,0,{"$f":"IF(G44>0,G44/$G$24,\"-\")","v":"-"}]
["Ammonia","kgs",139100.00000000003,99300.000000000015,89280,139060,466740.00000000006,2.6312997371406324]
["Urea","kgs",null,null,null,null,{"$f":"SUM(C46:F46)","v":0},"-"]
["Activated Carbon","kgs",40099.999999999993,25120,40500,20160,125880,0.70966279065703119]
["Lime / hydrated lime","kgs",390539.99999999994,277020,277340.00000000006,305400,1250300,7.0487081915990313]
["Fuel oil","ltrs",29595,30158,127597,13776,201126,1.1338706580369087]
["Gas","m3",null,null,null,null,0,"-"]
["Other",null,null,null,null,null,0,"-"]
[]
["Summary ","Line/Unit","Q1","Q2","Q3","Q4","Year Total",null,"Hrs in year "]
["Availability of waste combustion by line, hrs ****",1,2156,1801,999.55,2146,{"$f":"SUM(C54:F54)","v":7102.55},{"$f":"+G54/$I$54","v":0.8107933789954338},8760,"Change this figure to 8784 in a leap year"]
[null,2,2152.5,1869,1792,2209,8022.5,{"$f":"+G55/$I$54","v":0.91581050228310501}]
[null,3,null,null,null,null,0,0]
[null,4,null,null,null,null,0,0]
[null,5,null,null,null,null,{"$f":"SUM(C58:F58)","v":0},0]
["Hours of turbine operations, hrs",1,null,null,null,null,0,0]
["Hours of turbine operations, hrs",2,null,null,null,null,0,0]
["Hours of heat / steam export**","hours",4308.5,3670,2791.55,4355,15125.05,{"$f":"IF(B61>0,G60/I54,\"n/a\")","v":0}]
["Net calorific value of waste*****","MJ/kg",8.4587530028158842,8.4616127970303356,8.6106144907372624,8.3780816331416066]
["Abnormal operation events","qty.",null,null,1,1,2,{"$f":"IF(G63>0,\"yes\",\"no\")","v":"yes"}]
["Abnormal operation duration","hours",null,null,1,1.5,2.5,{"$f":"+(G64)/I54","v":2.8538812785388126E-4}]
["Permit Breaches","qty.",3,null,1,10,14,{"$f":"IF(G65>0,\"yes\",\"no\")","v":"yes"}]

{"sheet":"Operational Summary","index":3,"n_rows":39,"n_cols":11,"rows_kept":39,"cut":false,"hidden":false,"merged":[[29,10,42,13],[4,0,26,8],[4,10,13,13],[28,1,28,8],[29,2,29,8],[30,2,30,8],[31,2,31,8],[32,2,32,8],[33,2,33,8],[34,2,34,8],[35,2,35,8],[36,2,36,8],[37,2,37,8],[38,2,38,8],[44,2,44,8],[39,2,39,8],[40,2,40,8],[41,2,41,8],[42,2,42,8],[43,2,43,8]]}
[{"$f":"+'Cover Page'!$B$29","v":"Annual Performance Report 2025"},null,null,null,{"$f":"+'Cover Page'!$B$33","v":"Eastcroft EfW Site"}]
[]
["Summary of Plant Operations and Maintenance during the reporting year",null,null,null,null,null,null,null,null,null,"Notes:"]
[]
["During 2025 the facility ran for 15,125 hours across the 2 lines representing an availability of 86.4% with 177,380 tonnes delivered to site compared to a permit limit of 200,000 tonnes per annum. Nearly all of this waste was delivered by the local authorities of Nottingham and the surrounding area and most other wastes being categorised as municipal (Chapter 20 of the List of Wastes Regulations). \n\nThe facility submitted 7 schedule notification during the year describing 10 exceedences of an emission limit, 7 of which were due to a single instance of non-conforming waste and three of which were minor TOC exceedances caused by gas cylinder explosions in the boiler. Environmental impact modelling of these events demonstrated no measurable environmental effect or exceedance of a relevant air quality threshold.\n\nThe plant provided 319 GWh of energy in the form of steam and hot water to the Nottingham City Council (formerly EnviroEnergy) facility who operate a combined heat and power station, providing electricity to private customers, the national grid and providing heating to households and commercial premises through their district heating system. Eastcroft receives all electrical supply and water for the process from the Nottingham City Council facility. \n\nThe main period of downtime related to a planned maintenance period within where routine maintenance that cannot be undertaken whilst the plant is operational took place. During the planned outage approximately 50% of each superheater was replaced. The plant was also brought offline to replace the grate hydraulic ram steelwork which had cracked due to metal fatigue. Additional short periods of downtime were required to rectify damage caused by gas cylinder explosions.",null,null,null,null,null,null,null,null,null,"Include summary of key operational and/or maintenance activity undertaken in the year, such as any major component upgrades and/or replacements "]
[]
[]
[]
[]
[]
[]
[]
[]
[]
[]
[]
[]
[]
[]
[]
[]
[]
[]
[]
[]
[]
[]
[]
[{"$f":"+'Cover Page'!C39","v":2025},"Plant shut-downs"]
["Start date","End date","Reason for shut-down",null,null,null,null,null,null,null,"Provide a very brief reason for plant shut-down e.g. \"Shut-down prior to major outage\"; \"Emergency shut-down due to boiler tube leak\". All emergency shut-downs must be listed (irrespective of whether or not they were required to be reported to the EA). \n\nThere is no need to include periods of hot-standby here (e.g. to clear feed chute hopper blockages).\n\nFor clinical waste incinerators which require regular shut-downs for boiler cleaning, there is no need to record these here (only those prior to major outages, and emergency shut-downs). "]
["2025-04-03","2025-04-04","Boiler repairs due to gas cylinder damage"]
["2025-04-27","2025-04-28","Boiler repairs due to gas cylinder damage"]
["2025-05-18","2025-05-21","Boiler repairs due to gas cylinder damage"]
["2025-06-18","A1: 29/08/2025, A2: 17/07/2025","Planned outage. Line 1 was largely left offline during August due to lack of steam capacity at London Road Heat Station"]
["2025-09-26","2025-09-29","Line 1 shut down to manage non-conforming waste"]
["2025-10-19","2025-10-20","Boiler repairs due to gas cylinder damage"]
["2025-12-11","2025-12-12","Rapairs to grate ram and removal of built-up slag in boiler"]
["2025-12-15","2025-12-20","Rapairs to grate ram and removal of built-up slag in boiler"]
["2025-12-23","2025-12-24","Rapairs to grate ram and removal of built-up slag in boiler"]

{"sheet":"Perf. Form 1","index":4,"n_rows":54,"n_cols":10,"rows_kept":54,"cut":false,"hidden":false,"merged":[[47,0,47,1],[49,0,49,9],[50,0,51,9],[38,0,38,9],[39,0,40,9],[43,0,43,1],[43,2,43,9],[45,0,45,1],[46,0,46,1],[36,0,36,3],[36,4,36,5],[36,7,36,8],[37,0,37,3],[37,4,37,5],[37,7,37,8],[34,0,34,3],[34,4,34,5],[34,7,34,8],[35,0,35,3],[35,4,35,5],[35,7,35,8],[31,0,31,3],[31,7,31,8],[32,0,32,3],[32,4,32,5],[32,7,32,8],[33,0,33,3],[33,4,33,5],[33,7,33,8],[23,0,23,3],[23,4,23,5],[23,6,23,7],[23,8,23,9],[25,0,25,9],[26,0,28,9],[21,0,21,1],[21,2,21,3],[21,4,21,5],[21,6,21,7],[21,8,21,9],[22,0,22,3],[22,4,22,5],[22,6,22,7],[22,8,22,9],[19,0,19,1],[19,2,19,3],[19,4,19,5],[19,6,19,7],[19,8,19,9],[20,0,20,1],[20,2,20,3],[20,4,20,5],[20,6,20,7],[20,8,20,9],[17,0,17,1],[17,2,17,3],[17,4,17,5],[17,6,17,7],[17,8,17,9],[18,0,18,1],[18,2,18,3],[18,4,18,5],[18,6,18,7],[18,8,18,9],[15,0,15,1],[15,2,15,3],[15,4,15,5],[15,6,15,7],[15,8,15,9],[16,0,16,9],[13,0,13,1],[13,2,13,3],[13,4,13,5],[13,6,13,7],[13,8,13,9],[14,0,14,3],[14,4,14,5],[14,6,14,7],[14,8,14,9],[11,0,11,1],[11,2,11,3],[11,4,11,5],[11,6,11,7],[11,8,11,9],[12,0,12,1],[12,2,12,3],[12,4,12,5],[12,6,12,7],[12,8,12,9],[9,0,9,9],[10,0,10,1],[10,2,10,3],[10,4,10,5],[10,6,10,7],[10,8,10,9],[2,0,2,4],[2,6,2,8],[3,1,3,4],[5,3,5,4],[5,6,5,7],[8,0,8,1],[8,2,8,3],[8,4,8,5],[8,6,8,7],[8,8,8,9]]}
[{"$f":"+'Cover Page'!C39","v":2025}," Annual Reporting Performance Form 1"]
[]
[{"$f":"+'Cover Page'!B31","v":"Permit EPR/EP3034SN"},null,null,null,null,"Operator: ",{"$f":"+'Cover Page'!B37","v":"WasteNotts (Reclamation) Limited"}]
["Facility:",{"$f":"+'Cover Page'!B33:I33","v":"Eastcroft EfW Site"},null,null,null,"Form:","Performance 1"]
[]
["Reporting  Period from: ",null,null,null,null,"to:"]
[]
[{"$f":"+A1","v":2025},"Annual Reporting of Waste Disposal and Recovery"]
["Waste Description",null,"Disposal Route(s)",null,"Disposal Tonnes",null,"Recovery Tonnes",null,"% / tonne of waste incinerated"]
["1) Hazardous Wastes"]
["APC Residues",null,"D03",null,4327,null,null,null,{"$f":"IF((E11+G11)>0,(E11+G11)/'Operational Data'!$G$24, \"-\")","v":2.4393953727144695E-2}]
["IBA",null,null,null,null,null,null,null,{"$f":"IF((E12+G12)>0,(E12+G12)/'Operational Data'!$G$24, \"-\")","v":"-"}]
[null,null,null,null,null,null,null,null,{"$f":"IF((E13+G13)>0,(E13+G13)/'Operational Data'!$G$24, \"-\")","v":"-"}]
[null,null,null,null,null,null,null,null,{"$f":"IF((E14+G14)>0,(E14+G14)/'Operational Data'!$G$24, \"-\")","v":"-"}]
["Total Hazardous Waste",null,null,null,{"$f":"SUM(E11:F14)","v":4327},null,{"$f":"SUM(G11:H14)","v":0},null,{"$f":"IF((E15+G15)>0,(E15+G15)/'Operational Data'!$G$24, \"-\")","v":2.4393953727144695E-2}]
[]
["2) Non-Hazardous Wastes"]
["IBA",null,"R05",null,null,null,31988,null,{"$f":"IF((E18+G18)>0,(E18+G18)/'Operational Data'!$G$24, \"-\")","v":0.1803359814707429}]
["Ferrous Metal",null,null,null,null,null,null,null,{"$f":"IF((E19+G19)>0,(E19+G19)/'Operational Data'!$G$24, \"-\")","v":"-"}]
["Process Water",null,null,null,null,null,null,null,{"$f":"IF((E20+G20)>0,(E20+G20)/'Operational Data'!$G$24, \"-\")","v":"-"}]
[null,null,null,null,null,null,null,null,{"$f":"IF((E21+G21)>0,(E21+G21)/'Operational Data'!$G$24, \"-\")","v":"-"}]
[null,null,null,null,null,null,null,null,{"$f":"IF((E22+G22)>0,(E22+G22)/'Operational Data'!$G$24, \"-\")","v":"-"}]
["Total Non-Hazardous Waste",null,null,null,{"$f":"SUM(E18:F22)","v":0},null,{"$f":"SUM(G18:H22)","v":31988},null,{"$f":"IF((E23+G23)>0,(E23+G23)/'Operational Data'!$G$24, \"-\")","v":0.1803359814707429}]
["TOTAL WASTE",null,null,null,{"$f":"+E23+E15","v":4327},null,{"$f":"+G23+G15","v":31988},null,{"$f":"IF((E24+G24)>0,(E24+G24)/'Operational Data'!$G$24, \"-\")","v":0.20472993519788757}]
[]
["Operator’s comments :"]
[]
[]
[]
[]
[{"$f":"+A1","v":2025},"Annual Reporting of Water and Other Raw Material Usage"]
["Raw Material",null,null,null,"Usage",null,"Unit","Specific Usage",null,"Unit"]
["Mains Water",null,null,null,{"$f":"+'Operational Data'!G43/1000","v":2847},null,"m3",{"$f":"IF(E33>0,E33/'Operational Data'!$G$24,\"-\")","v":1.6050285708615886E-2},null,"m3/te"]
["Total Water",null,null,null,{"$f":"+'Operational Data'!G44+'Operational Data'!G43/1000","v":2847},null,"m3",{"$f":"IF(E34>0,E34/'Operational Data'!$G$24,\"-\")","v":1.6050285708615886E-2},null,"m3/te"]
["Urea / Ammonia",null,null,null,{"$f":"+'Operational Data'!G45","v":466740.00000000006},null,"kg",{"$f":"IF(E35>0,E35/'Operational Data'!$G$24,\"-\")","v":2.6312997371406324},null,"kg/te"]
["Activated Carbon",null,null,null,{"$f":"+'Operational Data'!G47","v":125880},null,"kg",{"$f":"IF(E36>0,E36/'Operational Data'!$G$24,\"-\")","v":0.70966279065703119},null,"kg/te"]
["Lime / hydrated lime / Sodium Bicarb.",null,null,null,{"$f":"+'Operational Data'!G48","v":1250300},null,"kg",{"$f":"IF(E37>0,E37/'Operational Data'!$G$24,\"-\")","v":7.0487081915990313},null,"kg/te"]
[]
["Operator’s comments :"]
[]
[]
[]
[{"$f":"+A31","v":2025},"Annual Reporting of other performance indicators "]
["Parameter",null,"Results by Line"]
[null,null,"A1","A2","A3","A4","A5",null,"Turbine 1","Turbine 2"]
["Operating hours for the year, hours",null,7103,8023]
["Number of periods of abnormal operation, qty.",null,2]
["Cumulative hours of abnormal operation for this year, hours",null,2.5]
[]
["Operator’s comments :"]
[]
[]
[]
["Signed: ",null,null,null,null,null,"Date:"]

{"sheet":"Energy Form 1","index":5,"n_rows":29,"n_cols":7,"rows_kept":29,"cut":false,"hidden":false,"merged":[[15,0,15,2],[15,3,15,4],[15,6,15,8],[17,0,17,8],[18,0,24,8],[13,0,13,2],[13,3,13,4],[13,6,13,8],[14,0,14,2],[14,3,14,4],[14,6,14,8],[11,0,11,2],[11,3,11,4],[11,6,11,8],[12,0,12,2],[12,3,12,4],[12,6,12,8],[9,0,9,2],[9,3,9,4],[9,6,9,8],[10,0,10,2],[10,3,10,4],[10,6,10,8],[2,6,2,8],[4,1,4,4],[6,3,6,4],[6,6,6,7],[8,0,8,2],[8,3,8,4],[8,6,8,8]]}
[{"$f":"+'Cover Page'!C39","v":2025}," Annual Reporting of Energy Usage/Export"]
[]
[{"$f":"+'Cover Page'!B31","v":"Permit EPR/EP3034SN"},null,null,null,null,"Operator: ",{"$f":"+'Cover Page'!B37","v":"WasteNotts (Reclamation) Limited"}]
[]
["Facility:",{"$f":"+'Cover Page'!B33:I33","v":"Eastcroft EfW Site"},null,null,null,"Form:","Energy 1"]
[]
["Reporting  Period from: ",null,null,{"$f":"+'Perf. Form 1'!D6:E6","v":"00:00:00"},null,"to:",{"$f":"+'Perf. Form 1'!G6:H6","v":"00:00:00"}]
[]
["Energy Source",null,null,"Energy Usage",null,"Unit","Specific Usage (KWh/tonne incinerated"]
["Electricity Produced",null,null,{"$f":"+'Operational Data'!G27","v":0},null,"MWh",{"$f":"+'Operational Data'!H27","v":"-"}]
["Electricity Imported   ",null,null,{"$f":"+'Operational Data'!G29","v":9922.9609999999993},null,"MWh",{"$f":"+'Operational Data'!H29","v":55.941819151897718}]
["Electricity Exported",null,null,{"$f":"+'Operational Data'!G28","v":0},null,"MWh",{"$f":"+'Operational Data'!H28","v":"-"}]
["Gas Oil",null,null,165,null,"tonnes"]
["Steam/hot water exported",null,null,{"$f":"+'Operational Data'!G31","v":319274},null,"GWh",{"$f":"+'Operational Data'!H31","v":1799.9434209106528}]
[]
[]
[]
["Operator’s comments :"]
[]
[]
[]
[]
[]
[]
[]
[]
[]
[]
["Signed: ",null,null,null,null,null,"Date:"]

{"sheet":"Permit Compliance","index":6,"n_rows":32,"n_cols":12,"rows_kept":32,"cut":false,"hidden":false,"merged":[[24,1,24,2],[25,1,25,2],[26,0,26,8],[19,7,19,8],[19,1,19,2],[19,3,19,5],[21,3,21,5],[22,3,22,5],[23,3,23,5],[24,3,24,5],[25,3,25,5],[21,1,21,2],[8,11,20,11],[28,0,28,10],[18,0,18,10],[33,1,33,3],[33,4,33,6],[33,7,33,9],[29,1,29,3],[29,4,29,6],[29,7,29,9],[30,1,30,3],[30,4,30,6],[30,7,30,9],[22,1,22,2],[23,1,23,2],[14,0,14,1],[14,2,14,4],[34,1,34,3],[34,4,34,6],[34,7,34,9],[31,1,31,3],[31,4,31,6],[31,7,31,9],[32,1,32,3],[32,4,32,6],[32,7,32,9],[14,5,14,8],[15,0,15,1],[16,2,16,4],[16,5,16,8],[15,2,15,4],[15,5,15,8],[16,0,16,1],[7,0,7,1],[7,2,7,8],[8,0,8,1],[8,2,8,4],[8,5,8,8],[35,4,35,8],[9,0,9,1],[9,2,9,4],[9,5,9,8],[10,0,10,1],[10,2,10,4],[10,5,10,8],[11,0,11,1],[11,2,11,4],[11,5,11,8],[12,0,12,1],[12,2,12,4],[12,5,12,8],[13,0,13,1],[13,2,13,4],[13,5,13,8]]}
[{"$f":"+'Cover Page'!$B$29","v":"Annual Performance Report 2025"},null,null,null,{"$f":"+'Cover Page'!$B$33","v":"Eastcroft EfW Site"}]
[]
["Summary of Permit Compliance"]
[]
["Compliance with permit limits for continuously monitored pollutants"]
[]
["The plant met its emission limits as shown in the table below:"]
["Substance",null,"Percentage time compliant during operationNote 1",null,null,null,null,null,null,null,null,"Notes:"]
[null,null,"Half-hourly limit",null,null,"Daily limit",null,null,null,null,null,"Note 1: Please report to 2 decimal places, i.e. xx.xx%\n\nNote 2: Please enter into this table any permit non-compliances that the EA has given a CCS score for. Please also enter any other non-compliances which you have notified to the EA (e.g. ELV exceedances) but which have not yet been assessed by the EA. There is no need to enter any notifications which were subsequently assessed by the EA not to be permit breaches.  \n\nNote 3: Please enter information here (rather than just referencing the notifications that were sent to the EA) including where relevant the incineration line reference, pollutant and value of the measured result for any ELV exceedances.   \n\n"]
["Particulates",null,1,null,null,1]
["Oxides of nitrogen",null,1,null,null,1]
["Sulphur dioxide",null,1,null,null,1]
["Carbon monoxide",null,"xx.xx % or \nxx.xx% 95% of 10-min averages",null,null,1]
["Total organic carbon",null,"\n99.6%  97% of 30-min averages",null,null,1]
["Hydrogen chloride",null,0.99970000000000003,null,null,1]
["Hydrogen fluoride",null,"N/A",null,null,"N/A"]
[null,null,"xx.xx %",null,null,"xx.xx %"]
[]
["Summary of non-compliances under the permit Note 2"]
["Date","Summary of non-compliance Note 3",null,"Reason ",null,null,"Measures taken to prevent reoccurrence","CCS score if applicable*"]
[null,null,null,null,null,null,null,"Impact","Root cause"]
["2025-08-28","Line 1 biannual test exceedances of Dioxins and Furans (0.42ng) and HF (1.8mg)",null,"Combustion had not fully stabilised after outage",null,null,"Ensure stable combustion"]
["25-28/09/2025","Line 1 exceedances of HCl 1/2 hour of 99.5, 161.7, 97.2, 85.9,142, 70.3, 65.2, 81.3, 241, 150.3",null,"High Chloride rubber turnings tipped in bunker contaminating the waste",null,null,"Removed waste and returned to producer, audited waste supplier site procedures, increased waste inspections","CCS4=No Impact","Waste producer's waste acceptance procedures"]
[]
[]
[]
["*If the Environment Agency (EA) has given a Compliance Classification Scheme (CCS) score due to a permit non-compliance it should be entered here (CCS4 = No impact; CCS3 = Minor impact; CCS2 = Significant impact; CCS1 = Major impact). If the EA has not yet assessed a non-compliance which you have notified to them, these columns should be left blank. Enter N/A if no score was given for the root cause.  "]
[]
["Summary of any complaints received and actions to taken to resolve them."]
["Date","Summary of complaint [including Line/Reference]",null,null,"Reason (including whether substantiated by the operator or the EA)",null,null,"Measures taken to prevent reoccurrence"]
["2025-04-07","Noise complaint",null,null,"Noise determined to originate from another facility therefore unsubstantiated",null,null,"Met with complainant to assist with identification of noise source"]
["2025-08-06","Odour complaint",null,null,"Believed to be from waste bunker due to hot summer, lengthy outage and damaged tipping hall door waste-contaminated grab left in the yard for repairs. Substantiated by Site Manager",null,null,"Grab cleaned and arrangements under way for tipping hall door repairs"]

{"sheet":"Improvements","index":7,"n_rows":38,"n_cols":5,"rows_kept":38,"cut":false,"hidden":false,"merged":[[37,0,37,8],[38,0,47,8],[4,0,4,8],[5,0,13,8],[15,0,15,8],[16,0,24,8],[26,0,26,8],[27,0,35,8]]}
[{"$f":"+'Cover Page'!$B$29","v":"Annual Performance Report 2025"},null,null,null,{"$f":"+'Cover Page'!$B$33","v":"Eastcroft EfW Site"}]
[]
["Summary of Plant Improvements"]
[]
["Summary of any efficiency improvements that have been completed within the year."]
["LED lighting replacement ongoing"]
[]
[]
[]
[]
[]
[]
[]
[]
[]
["Summary of any permit improvement conditions that have been completed within the year and the resulting environmental benefits."]
["Report on NOx trials received from Environment Agency closing out associated Improvement Condition."]
[]
[]
[]
[]
[]
[]
[]
[]
[]
["Summary of any changes to the plant or operating techniques which required a variation to the permit and a summary of the resulting environmental impact."]
["Permit varied to move TOC ELV to 10 mg/Nm3 97% due to significant increase in Nitrous Oxide cylinders hidden in black bag waste causing very brief TOC spikes."]
[]
[]
[]
[]
[]
[]
[]
[]
[]
["Summary of any other improvements made to the plant or planned to be made and a summary of the resulting environmental benefits."]

{"sheet":"Public Liasion","index":8,"n_rows":29,"n_cols":5,"rows_kept":29,"cut":false,"hidden":false,"merged":[[23,0,24,1],[23,2,24,8],[25,0,26,1],[25,2,26,8],[28,0,28,8],[17,0,18,1],[17,2,18,8],[19,0,20,1],[19,2,20,8],[21,0,22,1],[21,2,22,8],[16,0,16,1],[16,2,16,8],[5,0,5,1],[5,2,5,8],[6,0,7,1],[6,2,7,8],[8,0,9,1],[8,2,9,8],[10,0,11,1],[10,2,11,8],[12,0,13,1],[12,2,13,8],[15,0,15,8]]}
[{"$f":"+'Cover Page'!$B$29","v":"Annual Performance Report 2025"},null,null,null,{"$f":"+'Cover Page'!$B$33","v":"Eastcroft EfW Site"}]
[]
["Details of Public & Stakeholder Liaison"]
[]
["Summary of events held during the reporting year."]
["Date",null,"Description"]
["2025-09-24",null,"Community Liaison Group Meeting"]
[]
[]
[]
[]
[]
[]
[]
[]
["List of events planned for next year"]
["Date",null,"Description"]
["TBC",null,"Community Liaison Group Meeting"]
[]
[]
[]
[]
[]
[]
[]
[]
[]
[]
["If you wish to be involved in the public liasion programme, please contact info.eastcroft@fccenvironment.co.uk 0115 9869505 or visit https://eastcroft.fccenvironment.co.uk/contact-us/ "]

{"sheet":"CO2 N2O","index":9,"n_rows":26,"n_cols":6,"rows_kept":26,"cut":false,"hidden":false,"merged":[[6,5,9,5],[22,2,22,3],[25,1,25,3],[16,2,16,3],[4,0,4,3],[9,0,9,3],[17,0,17,3],[13,0,13,3],[12,0,12,1],[8,2,8,3],[11,2,11,3],[19,2,19,3]]}
[{"$f":"+'Cover Page'!$B$29","v":"Annual Performance Report 2025"},null,{"$f":"+'Cover Page'!$B$33","v":"Eastcroft EfW Site"}]
[]
["Carbon dioxide emissions and biogenic content of waste inputs",null,null,null,null,"Notes:"]
[]
["Carbon dioxide emissions (all types of plant)"]
[null,"Annual mass of carbon dioxide released","tonnes ",171742]
[null,"Annual mass of carbon dioxide released per tonne of waste burned","t CO2 / t waste ",0.97,null,"Note 1: All permits require operators to continuously monitor CO2 to EN14181 and flow to BS EN 16911-2 (unless otherwise agreed in writing). Operators must therefore use the results from these instruments to calculate their annual CO2 emissions. Where an operator does not have a flow meter calibrated to BS EN 16911-2, the averaged flow measurement from that year's periodic monitoring can be used instead. If the plant does not have calibrated CO2 CEMS, a suitably justified emissions factor can be used. \n\n"]
[null,"Annual mass of carbon dioxide released per MWh of energy exported","t CO2 / MWh export ",0.54]
[null,"Description of how annual carbon dioxide mass emission has been calculated. \nSee Note 1","Flow and CO2 emissions taken from calibrated CEMs"]
["Nitrous oxide emissions (only plants which use ammonia or urea to abate NOx emissions)"]
[null,"Annual mass emissions of nitrous oxide","tonnes N2O",355]
[null,"Description of how annual nitrous oxide mass emission has been calculated\nSee Note 2","Calibrated CEMs and flow meter",null,null,"Note 2: All permits require operators to continuously monitor N2O to EN14181 and flow to BS EN 16911-2, unless otherwise agreed in writing. Operators must therefore use the results from these instruments to calculate their annual N2O emissions. Where an operator does not have a flow meter calibrated to BS EN 16911-2, the averaged flow measurement from periodic monitoring can be used instead. If the plant does not have calibrated N2O CEMS, data from periodic monitoring or a suitably justified emissions factor can be used instead."]
["Total annual carbon dioxide + nitrous oxide emissions. \nSee Note 3. ",null,"tonnes CO2e",265817,null,"Note 3: Total annual carbon dioxide and nitrous oxide emissions reported as carbon dioxide equivalent where 1 tonne nitrous oxide is equivalent to 265 tonnes carbon dioxide."]
["Biogenic CO2 emissions (See Note 4)",null,null,null,null,"Note 4: Only plants combusting residual municipal waste, refuse derived fuel or solid recovered fuel need complete this section. "]
[null,"Percentage of total carbon dioxide emissions arising from biogenic waste","%",0.51800000000000002]
[null,"No. of measurements undertaken","Number",0]
[null,"Description of how percentage biogenic carbon dioxide emissions have been measured or calculated.\nSee Note 5","Figure taken from 2017 WRAP data",null,null,"Note 5: The results from C14 sampling should be used if this is carried out at the plant (either via an installed sampler or from spot samples).  \nOtherwise, as an approximation (and in lieu of any more accurate metrics which may be developed in future), the measured or estimated biogenic fraction by net calorific value (see Note 6) can be assumed to be the same as the biogenic CO2 fraction of the total CO2 emissions from the plant. "]
["Biogenic fraction of waste feedstock (See Note 4)"]
[null,"Yearly average biogenic percentage of the waste by net calorific value (NCV)","%",0.51800000000000002]
[null,"Description of how biogenic percentage (by NCV) has been calculated or estimated. \nSee Note 6","Figure taken from 2017 WRAP data",null,null,"Note 6: If C14 sampling is carried out at the plant, the methodology set out in the embedded document entitled \"Renewable Energy Association Energy Content of Fuels - Description of Method\" embedded below can be used to calculate the biogenic percentage by net calorific value. Otherwise, data from waste sampling or BIOMA software can be used; or if none of these are available, an estimated figure with justification or a figure assumed on the basis of up-to-date industry data can be used. "]
[null,"Yearly average biogenic percentage of the waste by mass","%",0.71399999999999997]
[null,"If waste sampling undertaken, no. of samples used to ascertain average biogenic percentages above","Number",25]
[null,"Description of how biogenic percentage (by mass) has been calculated or estimated. \nSee Note 7","Audit of waste inputs by Alfred H Knight",null,null,"Note 7: Where available, data from waste sampling should be used; otherwise, an estimated figure with justification can be used, or a figure assumed on the basis of up-to-date industry data. "]
[]
[null,"Comments:"]
[null,"Compositional analysis is not usually carried out as Eastcroft does not have a turbine and thus has no requirement for REGO analysis. Carbon 14 autosampler is currently being installed for 2026"]

{"sheet":"Residues","index":10,"n_rows":61,"n_cols":11,"rows_kept":61,"cut":false,"hidden":false,"merged":[[61,0,66,6],[57,3,57,4],[60,0,60,6],[52,0,53,1],[54,0,54,1],[55,0,55,1],[56,0,56,1],[57,0,57,1],[54,3,54,4],[55,3,55,4],[54,5,54,6],[55,5,55,6],[56,5,56,6],[57,5,57,6],[58,0,58,6],[45,0,46,1],[45,2,46,6],[47,0,48,1],[47,2,48,6],[56,3,56,4],[52,2,53,2],[53,3,53,4],[53,5,53,6],[52,3,52,6],[51,0,51,6],[4,0,25,8],[4,10,13,13],[41,0,42,1],[41,2,42,6],[43,0,44,1],[43,2,44,6],[37,0,37,6],[38,0,38,1],[38,2,38,6],[30,0,31,6],[32,0,33,6],[34,0,35,6],[39,0,40,1],[39,2,40,6]]}
[{"$f":"+'Cover Page'!$B$29","v":"Annual Performance Report 2025"},null,null,null,{"$f":"+'Cover Page'!$B$33","v":"Eastcroft EfW Site"}]
[]
["Summary of Residue Handling for the reporting year"]
[]
["Monitoring of residues for permit compliance was undertaken with full compliance to the residue limit recorded. \nNo specific events were recorded during 2025.",null,null,null,null,null,null,null,null,null,"Include in here a summary of residue handling regimes and destinations "]
[]
[]
[]
[]
[]
[]
[]
[]
[]
[]
[]
[]
[]
[]
[]
[]
[]
[]
[]
[]
[]
[]
["Residue Quality Monitoring Requirements"]
[]
["Summary of monitoring undertaken and compliance"]
["24 IBA samples and 4 APCr samples were analysed during the year with no non-conformances recorded"]
[]
[]
[]
[]
[]
[]
["Commentary on any specific events"]
["Date & Event",null,"Description"]
[]
[]
[]
[]
[]
[]
[]
[]
[]
[]
[]
[]
["Residue Quality Monitoring Results"]
["Parameter (unit) ",null,"Limit*","Normal Operation "]
[null,null,null,"Bottom ash  ",null,"APC Residues"]
["Loss on Ignition (average %)",null,"<5%","N/A"]
["Total Organic Carbon (average %)",null,"<3%",0.8]
["No. of Assessments Undertaken",null,"---",24,null,4]
["No. of Hazardous Results",null,"---",0]
["* The permit will specify a limit of either 5% loss on ignition or 3% total organic carbon. If both are measured anyway, please enter the results here, even where the limit does not apply. "]
[]
["Comments :"]

{"sheet":"Water","index":11,"n_rows":23,"n_cols":9,"rows_kept":23,"cut":false,"hidden":false,"merged":[[29,0,29,2],[29,3,29,4],[26,0,26,2],[26,3,26,4],[27,0,27,2],[27,3,27,4],[28,0,28,2],[28,3,28,4],[23,0,23,2],[23,3,23,4],[24,0,24,2],[24,3,24,4],[25,0,25,2],[25,3,25,4],[21,0,21,8],[22,0,22,2],[22,3,22,4],[14,0,15,1],[14,2,15,8],[16,0,17,1],[16,2,17,8],[18,0,19,1],[18,2,19,8],[5,0,6,8],[7,0,8,8],[9,0,10,8],[12,0,12,8],[13,0,13,1],[13,2,13,8]]}
[{"$f":"+'Cover Page'!$B$29","v":"Annual Performance Report 2025"},null,null,null,{"$f":"+'Cover Page'!$B$33","v":"Eastcroft EfW Site"}]
[]
["Emissions to Water"]
[]
["Summary of monitoring undertaken and compliance"]
[]
[]
[]
[]
[]
[]
[]
["Commentary on any specific events"]
["Date & Event",null,"Description"]
[]
[]
[]
[]
[]
[]
[]
["Emissions to Water / Sewer"]
["Parameter",null,null,"Monitoring Frequency",null,"Limit","Target","Max.","Average"]

{"sheet":"Air (periodic)","index":12,"n_rows":39,"n_cols":11,"rows_kept":39,"cut":false,"hidden":false,"merged":[[13,10,14,12],[15,10,16,10],[15,11,16,11],[15,12,16,12],[18,3,18,4],[13,3,13,4],[14,3,14,4],[15,3,15,4],[16,3,16,4],[17,3,17,4],[21,3,21,4],[22,3,22,4],[23,3,23,4],[24,3,24,4],[31,3,31,4],[25,3,25,4],[26,3,26,4],[28,3,28,4],[38,0,38,9],[19,0,19,1],[20,0,20,1],[21,0,21,1],[34,3,34,4],[35,3,35,4],[33,0,33,1],[34,0,34,1],[35,0,35,1],[36,0,36,1],[24,0,24,1],[32,3,32,4],[27,3,27,4],[33,3,33,4],[19,3,19,4],[20,3,20,4],[39,0,40,9],[25,0,25,1],[26,0,26,1],[22,0,22,1],[23,0,23,1],[37,0,37,1],[27,0,27,1],[28,0,28,1],[29,0,29,1],[30,0,30,1],[31,0,31,1],[32,0,32,1],[37,3,37,4],[29,3,29,4],[30,3,30,4],[36,3,36,4],[16,0,16,1],[17,0,17,1],[18,0,18,1],[13,0,13,1],[14,0,14,1],[15,0,15,1],[12,0,12,1],[11,3,11,4],[12,3,12,4],[9,0,10,1],[9,5,9,9],[9,3,10,4],[9,2,10,2],[5,10,8,13],[9,10,11,13],[8,0,8,9],[5,0,6,9],[11,0,11,1]]}
[{"$f":"+'Cover Page'!$B$29","v":"Annual Performance Report 2025"},null,null,null,{"$f":"+'Cover Page'!$B$33","v":"Eastcroft EfW Site"}]
[]
["Emissions to Air (periodically monitored)"]
[]
["Summary of monitoring undertaken, standards used and compliance",null,null,null,null,null,null,null,null,null,"Notes:"]
["Two biannual stack tests were conducted by an appropriately MCERTS accredited test house to test methods specified in the Environment Permit. Line 1 exceeded the ELVs for Dioxins and Furans and Hydrogen Fluoride on the second test and, in accordance with the DIoxin Protocol, passed the repeat analysis.",null,null,null,null,null,null,null,null,null,"Template may require adjustment for any bespoke monitoring requirements of permit - please also check that all default ELV values, reference periods and the stated oxygen reference value match those for your plant, and edit if necessary!"]
[]
[]
["Results of emissions to air that are periodically monitored - oxygen reference 11% "]
["Substance",null,"Ref. Period","Emission Limit Value",null,"Average",null,null,null,null,"User to add additional tables as necessary, depending on whether quarterly or bi-annual reporting is required for the compliance year"]
[null,null,null,null,null,"A1","A2","A3","A4","A5"]
["Hydrogen fluoride",null,"1 hr","1 mg/m3",null,0.98,0.14500000000000002]
["Cd and Tl and their compounds",null,"0.5-8hrs","0.02 mg/m3",null,1.4E-3,1.5E-3]
["Hg and its compounds",null,"0.5-8hrs","0.02 mg/m3",null,7.5000000000000002E-4,9.0499999999999999E-4]
["Sb, As, Pb, Cr, Co, Cu, Mn, Ni, V and their compounds",null,"0.5-8hrs","0.3 mg/m3",null,1.95E-2,2.6000000000000002E-2]
["Dioxins & Furans (I-TEQ)",null,"6-8hrs","0.06 ng/m3",null,0.21038999999999999,1.205E-2]
["PCBs (WHO-TEQ Humans / Mammals)",null,"6-8hrs","None set ng/m3",null,3.7529E-2,1.1460000000000001E-3]
["PCBs (WHO-TEQ Fish)",null,"6-8hrs","None set ng/m3",null,1.95265E-3,6.7799999999999995E-5]
["PCBs (WHO-TEQ Birds)",null,"6-8hrs","None set ng/m3",null,8.0180000000000001E-2,3.14E-3]
["Dioxins & Furans (WHO-TEQ Humans / Mammals)",null,"6-8hrs","None set ng/m3",null,0.205345,1.0999999999999999E-2]
["Dioxins & Furans (WHO-TEQ Fish)",null,"6-8hrs","None set ng/m3",null,0.24035499999999999,1.2500000000000001E-2]
["Dioxins & Furans (WHO-TEQ Birds)",null,"6-8hrs","None set ng/m3",null,0.36074999999999996,2.1499999999999998E-2]
["Anthanthrene",null,"6-8hrs","None set µg/m3",null,0.01,0.01]
["Benzo(a)anthracene",null,"6-8hrs","None set µg/m3",null,0.02,0.01]
["Benzo(a)pyrene",null,"6-8hrs","None set µg/m3",null,0.03,0.01]
["Benzo(b)fluoranthene",null,"6-8hrs","None set µg/m3",null,0.01,0.01]
["Benzo(b)naptho(2,1-d) thiophene",null,"6-8hrs","None set µg/m3",null,0.01,0.01]
["Benzo(c)phenanthrene",null,"6-8hrs","None set µg/m3",null,0.01,0.01]
["Benzo(ghi)perylene",null,"6-8hrs","None set µg/m3",null,0.04,0.01]
["Benzo(k)fluoranthene",null,"6-8hrs","None set µg/m3",null,0.02,0.01]
["Cholanthrene",null,"6-8hrs","None set µg/m3",null,0.01,0.01]
["Chrysene",null,"6-8hrs","None set µg/m3",null,0.03,0.02]
["Cyclopenta(cd)pyrene",null,"6-8hrs","None set µg/m3",null,0.04,0.01]
["Dibenzo(ai)pyrene",null,"6-8hrs","None set µg/m3",null,0.01,0.01]
["Dibenzo(ah)anthracene",null,"6-8hrs","None set µg/m3",null,0.01,0.01]
["Fluoranthene",null,"6-8hrs","None set µg/m3",null,0.39,0.13]
["Indeno(123-cd) pyrene",null,"6-8hrs","None set µg/m3",null,0.02,0.01]
["Naphthalene",null,"6-8hrs","None set µg/m3",null,11.5,22.1]
["Comments :"]

{"sheet":"Air (CEMS)","index":13,"n_rows":29,"n_cols":14,"rows_kept":29,"cut":false,"hidden":false,"merged":[[29,0,30,12],[13,0,14,0],[5,0,6,12],[7,0,8,12],[10,0,10,12],[11,0,12,0],[11,2,12,2],[11,1,12,1],[11,3,11,4],[11,5,11,6],[11,7,11,8],[11,9,11,10],[11,11,11,12],[14,13,15,13],[14,14,15,14],[14,15,15,15],[12,13,13,15],[27,0,27,12]]}
[{"$f":"+'Cover Page'!$B$29","v":"Annual Performance Report 2025"},null,null,null,null,null,null,null,{"$f":"+'Cover Page'!$B$33","v":"Eastcroft EfW Site"}]
[]
["Emissions to Air (continuously monitored)"]
[null,null,null,null,null,null,null,null,null,null,null,null,null,"Notes:"]
["Summary of monitoring undertaken, standards used and compliance",null,null,null,null,null,null,null,null,null,null,null,null,"Template may require adjustment for any bespoke monitoring requirements of permit"]
["All monitoring undertaken with MCERTs certified CEMs to EN14181",null,null,null,null,null,null,null,null,null,null,null,null,"Please check that all default ELV values match those for your plant and edit if necessary!"]
[null,null,null,null,null,null,null,null,null,null,null,null,null,"Report to 1 decimal place"]
[]
[]
[]
["Results of emissions to air that are continuously monitored (maximum and average values for each line) - oxygen reference 11%"]
["Substance","Reference Period","Emission Limit Value","A1",null,"A2",null,"A3",null,"A4",null,"A5"]
[null,null,null,"Max.","Avg.","Max.","Avg.","Max.","Avg.","Max.","Avg.","Max.","Avg."]
["Oxides of nitrogen","Daily mean","180 mg/m3 ",170.9,134.94545454545454,158.4,119.79166666666667]
[null,"½ hourly mean","400 mg/m3 ",276.7,130.84166666666667,187.5,119.85000000000001]
["Particulates","Daily mean","5 mg/m3",0.4,0.21818181818181817,2.1,0.22500000000000001]
[null,"½ hourly mean","30 mg/m3 ",1.3,0.24166666666666661,3.9,0.2583333333333333]
["Total Organic Carbon ","Daily mean","10 mg/m3 ",3.2,0.23636363636363641,1.5,0.16666666666666666]
[null,"½ hourly mean","20 mg/m3 ",485.5,0.54999999999999993,118.3,0.23333333333333339]
["Hydrogen chloride ","Daily mean","8 mg/m3 ",5.8,3.4545454545454546,5,2.6750000000000003]
[null,"½ hourly mean","60 mg/m3 ",241.5,3.2833333333333332,59.8,2.7250000000000001]
["Sulphur dioxide","Daily mean","40 mg/m3 ",16.5,11.545454545454547,23.7,11.508333333333333]
[null,"½ hourly mean","200 mg/m3 ",193.8,10.674999999999999,139.1,11.558333333333332]
["Carbon monoxide ","Daily mean","50 mg/m3 ",25.9,7.4545454545454533,25.1,6.6333333333333329]
[null,"½ hourly mean *","100 mg/m3 *"]
[null,"95%ile 10-min avg *","150 mg/m3 *",138.9,9.6199999999999992,320.5,7.28]
[" Ammonia","Daily mean","15 mg/m3 ",1.9,0.46363636363636362,2.4,0.6333333333333333]
["* = delete as appropriate, depending on whether your plant has half-hourly or 10-min CO ELVs\n"]
["Comments :"]

{"sheet":"HCl","index":14,"n_rows":79,"n_cols":17,"rows_kept":79,"cut":false,"hidden":false,"merged":[[12,16,15,18],[51,9,63,9],[66,9,78,9],[4,9,4,14],[4,1,4,3],[4,4,4,6],[48,0,51,6],[47,0,47,6],[6,9,18,9],[21,9,33,9],[36,9,48,9],[3,16,7,18],[9,16,11,18],[18,4,18,6]]}
[{"$f":"+'Cover Page'!$B$29","v":"Annual Performance Report 2025"},null,null,null,{"$f":"+'Cover Page'!$B$33","v":"Eastcroft EfW Site"}]
[]
["Monitoring of Hydrogen Chloride emissions",null,null,"Whole Installation",null,null,"See  Notes in Cell Q3",null,null,{"$f":"+A3","v":"Monitoring of Hydrogen Chloride emissions"},null,null,null,"Per Combustion Line",null,null,"Notes:"]
[null,null,null,null,null,null,null,null,null,null,null,null,null,null,null,null,"User to add logic to complete Whole installation, Table A5:G18. From the data in Per Combustion Line, Table J6:O79, subject to No. of lines installed"]
[{"$f":"+'Cover Page'!C39","v":2025},"1/2 Hourly Reference Periods",null,null,"Daily Reference Periods"]
["mg/Nm3","1/2 hourly HCl ELV","Monthly mean of half-hourly averages","Highest half- hourly average","Daily HCl ELV","Monthly mean of  daily averages","Highest daily average",null,null,{"$f":"+A5","v":2025},"mg/Nm3","Monthly mean of half-hourly averages","Highest half- hourly average","Monthly mean of  daily averages","Highest daily average"]
["Jan",60,2.4000000000000004,17.600000000000001,8,2.4000000000000004,3.6,null,null,"A1","Jan",2.2000000000000002,17.600000000000001,2.2000000000000002,3.6]
["Feb",60,2.25,7.4,8,2.25,3.2,null,null,null,"Feb",2.4,5.6,2.4,3.2]
["Mar",60,3.3,14.9,8,3.25,4.3,null,null,null,"Mar",3.7,14.9,3.7,4.3,null,"Whole Installation table A5:G18:"]
["Apr",60,3.45,10,8,3.4,4.9000000000000004,null,null,null,"Apr",4,10,4,4.9000000000000004,null,"Mean: for 1/2 hourly and daily periods calculate mean of values across all operational combustion lines for the month"]
["May",60,3.2,11,8,3.15,4.5999999999999996,null,null,null,"May",3.6,11,3.5,4.5999999999999996]
["Jun",60,2.5999999999999996,27.9,8,2.5499999999999998,3.8,null,null,null,"Jun",2.8,27.9,2.8,3.8]
["Jul",60,1.8,4.5999999999999996,8,1.3,3.5,null,null,null,"Jul",1,2.2000000000000002,null,null,null,"Maximum: for 1/2 hourly and daily periods use the highest value across all operational combustion lines for the month"]
["Aug",60,3,28.9,8,3.1,5.7,null,null,null,"Aug",3.4,28.9,3.7,5.7]
["Sep",60,4.1500000000000004,241.5,8,3.8,5.8,null,null,null,"Sep",5.3,241.5,4.7,5.8]
["Oct",60,3.7,17,8,3.6500000000000004,5.0999999999999996,null,null,null,"Oct",4.2,17,4.2,5.0999999999999996]
["Nov",60,3.05,59.8,8,3.05,5,null,null,null,"Nov",3.3,38.6,3.3,4.5999999999999996]
["Dec",60,3.15,17.7,8,3.15,5.6,null,null,null,"Dec",3.5,17.7,3.5,5.6]
[null,null,null,null,null,null,null,null,null,null,"Annual",{"$f":"AVERAGE(L7:L18)","v":3.2833333333333332},{"$f":"MAX(M7:M18)","v":241.5},{"$f":"AVERAGE(N7:N18)","v":3.4545454545454546},{"$f":"MAX(O7:O18)","v":5.8}]
[]
[null,null,null,null,null,null,null,null,null,{"$f":"+A5","v":2025},"mg/Nm3","Monthly mean of half-hourly averages","Highest half- hourly average","Monthly mean of  daily averages","Highest daily average"]
[null,null,null,null,null,null,null,null,null,"A2","Jan",2.6,5,2.6,3.2]
[null,null,null,null,null,null,null,null,null,null,"Feb",2.1,7.4,2.1,2.8]
[null,null,null,null,null,null,null,null,null,null,"Mar",2.9,5.3,2.8,3.6]
[null,null,null,null,null,null,null,null,null,null,"Apr",2.9,8.4,2.8,3.4]
[null,null,null,null,null,null,null,null,null,null,"May",2.8,7.7,2.8,3.4]
[null,null,null,null,null,null,null,null,null,null,"Jun",2.4,6.4,2.2999999999999998,3.1]
[null,null,null,null,null,null,null,null,null,null,"Jul",2.6,4.5999999999999996,2.6,3.5]
[null,null,null,null,null,null,null,null,null,null,"Aug",2.6,28.1,2.5,3.4]
[null,null,null,null,null,null,null,null,null,null,"Sep",3,20.8,2.9,4]
[null,null,null,null,null,null,null,null,null,null,"Oct",3.2,14.6,3.1,3.9]
[null,null,null,null,null,null,null,null,null,null,"Nov",2.8,59.8,2.8,5]
[null,null,null,null,null,null,null,null,null,null,"Dec",2.8,6.3,2.8,3.3]
[null,null,null,null,null,null,null,null,null,null,"Annual",{"$f":"AVERAGE(L22:L33)","v":2.7250000000000001},{"$f":"MAX(M22:M33)","v":59.8},{"$f":"AVERAGE(N22:N33)","v":2.6750000000000003},{"$f":"MAX(O22:O33)","v":5}]
[]
[null,null,null,null,null,null,null,null,null,{"$f":"+A5","v":2025},"mg/Nm3","Monthly mean of half-hourly averages","Highest half- hourly average","Monthly mean of  daily averages","Highest daily average"]
[null,null,null,null,null,null,null,null,null,"A3","Jan"]
[null,null,null,null,null,null,null,null,null,null,"Feb"]
[null,null,null,null,null,null,null,null,null,null,"Mar"]
[null,null,null,null,null,null,null,null,null,null,"Apr"]
[null,null,null,null,null,null,null,null,null,null,"May"]
[null,null,null,null,null,null,null,null,null,null,"Jun"]
[null,null,null,null,null,null,null,null,null,null,"Jul"]
[null,null,null,null,null,null,null,null,null,null,"Aug"]
[null,null,null,null,null,null,null,null,null,null,"Sep"]
[null,null,null,null,null,null,null,null,null,null,"Oct"]
[null,null,null,null,null,null,null,null,null,null,"Nov"]
["Comments :",null,null,null,null,null,null,null,null,null,"Dec"]
["Line 1 was off for all of July except for a few hours on the 31st which led to no valid days for that line",null,null,null,null,null,null,null,null,null,"Annual",{"$f":"AVERAGE(L37:L48)","v":{"$error":"#DIV/0!"}},{"$f":"MAX(M37:M48)","v":0},{"$f":"AVERAGE(N37:N48)","v":{"$error":"#DIV/0!"}},{"$f":"MAX(O37:O48)","v":0}]
[]
[null,null,null,null,null,null,null,null,null,{"$f":"+A5","v":2025},"mg/Nm3","Monthly mean of half-hourly averages","Highest half- hourly average","Monthly mean of  daily averages","Highest daily average"]
[null,null,null,null,null,null,null,null,null,"A4","Jan"]
[null,null,null,null,null,null,null,null,null,null,"Feb"]
[null,null,null,null,null,null,null,null,null,null,"Mar"]
[null,null,null,null,null,null,null,null,null,null,"Apr"]
[null,null,null,null,null,null,null,null,null,null,"May"]
[null,null,null,null,null,null,null,null,null,null,"Jun"]
[null,null,null,null,null,null,null,null,null,null,"Jul"]
[null,null,null,null,null,null,null,null,null,null,"Aug"]
[null,null,null,null,null,null,null,null,null,null,"Sep"]
[null,null,null,null,null,null,null,null,null,null,"Oct"]
[null,null,null,null,null,null,null,null,null,null,"Nov"]
[null,null,null,null,null,null,null,null,null,null,"Dec"]
[null,null,null,null,null,null,null,null,null,null,"Annual",{"$f":"AVERAGE(L52:L63)","v":{"$error":"#DIV/0!"}},{"$f":"MAX(M52:M63)","v":0},{"$f":"AVERAGE(N52:N63)","v":{"$error":"#DIV/0!"}},{"$f":"MAX(O52:O63)","v":0}]
[]
[null,null,null,null,null,null,null,null,null,{"$f":"+A5","v":2025},"mg/Nm3","Monthly mean of half-hourly averages","Highest half- hourly average","Monthly mean of  daily averages","Highest daily average"]
[null,null,null,null,null,null,null,null,null,"A5","Jan"]
[null,null,null,null,null,null,null,null,null,null,"Feb"]
[null,null,null,null,null,null,null,null,null,null,"Mar"]
[null,null,null,null,null,null,null,null,null,null,"Apr"]
[null,null,null,null,null,null,null,null,null,null,"May"]
[null,null,null,null,null,null,null,null,null,null,"Jun"]
[null,null,null,null,null,null,null,null,null,null,"Jul"]
[null,null,null,null,null,null,null,null,null,null,"Aug"]
[null,null,null,null,null,null,null,null,null,null,"Sep"]
[null,null,null,null,null,null,null,null,null,null,"Oct"]
[null,null,null,null,null,null,null,null,null,null,"Nov"]
[null,null,null,null,null,null,null,null,null,null,"Dec"]
[null,null,null,null,null,null,null,null,null,null,"Annual",{"$f":"AVERAGE(L67:L78)","v":{"$error":"#DIV/0!"}},{"$f":"MAX(M67:M78)","v":0},{"$f":"AVERAGE(N67:N78)","v":{"$error":"#DIV/0!"}},{"$f":"MAX(O67:O78)","v":0}]

{"sheet":"SO2","index":15,"n_rows":79,"n_cols":17,"rows_kept":79,"cut":false,"hidden":false,"merged":[[3,16,7,18],[9,16,11,18],[12,16,15,18],[66,9,78,9],[4,1,4,3],[4,4,4,6],[4,9,4,14],[6,9,18,9],[21,9,33,9],[36,9,48,9],[47,0,47,6],[48,0,51,6],[51,9,63,9],[18,4,18,6]]}
[{"$f":"+'Cover Page'!$B$29","v":"Annual Performance Report 2025"},null,null,null,{"$f":"+'Cover Page'!$B$33","v":"Eastcroft EfW Site"}]
[]
["Monitoring of Sulphur dioxide emissions",null,null,"Whole Installation",null,null,"See  Notes in Cell Q3",null,null,{"$f":"+A3","v":"Monitoring of Sulphur dioxide emissions"},null,null,null,"Per Combustion Line",null,null,"Notes:"]
[null,null,null,null,null,null,null,null,null,null,null,null,null,null,null,null,"User to add logic to complete Whole installation, Table A5:G18. From the data in Per Combustion Line, Table J6:O79, subject to No. of lines installed"]
[{"$f":"+'Cover Page'!C39","v":2025},"1/2 Hourly Reference Periods",null,null,"Daily Reference Periods"]
["mg/Nm3","1/2 hourly SO2 ELV","Monthly mean of half-hourly averages","Highest half- hourly average","Daily SO2 ELV","Monthly mean of  daily averages","Highest daily average",null,null,{"$f":"+A5","v":2025},"mg/Nm3","Monthly mean of half-hourly averages","Highest half- hourly average","Monthly mean of  daily averages","Highest daily average"]
["Jan",200,15.95,43.1,40,16,21.9,null,null,"A1","Jan",15.2,36.9,15.2,20.5]
["Feb",200,17.55,56.3,40,17.5,23.7,null,null,null,"Feb",16.5,56.3,16.5,19.899999999999999]
["Mar",200,10.7,64.400000000000006,40,10.65,18.100000000000001,null,null,null,"Mar",12,64.400000000000006,12,16.899999999999999,null,"Whole Installation table A5:G18:"]
["Apr",200,8.9,36,40,8.9,14.6,null,null,null,"Apr",11.5,35.799999999999997,11.5,14.6,null,"Mean: for 1/2 hourly and daily periods calculate mean of values across all operational combustion lines for the month"]
["May",200,9.25,93.4,40,9.25,15.6,null,null,null,"May",12.3,93.4,12.3,15.6]
["Jun",200,9.4,64.2,40,9.35,13.5,null,null,null,"Jun",11.3,47.3,11.2,13.5]
["Jul",200,9,66.8,40,8.6999999999999993,22.6,null,null,null,"Jul",0.5,1.9,"-","-",null,"Maximum: for 1/2 hourly and daily periods use the highest value across all operational combustion lines for the month"]
["Aug",200,13.15,71.3,40,13.149999999999999,21.5,null,null,null,"Aug",14,71.3,14.2,18.2]
["Sep",200,10.3,193.8,40,10,17.899999999999999,null,null,null,"Sep",10,193.8,9.4,17.899999999999999]
["Oct",200,9.75,90.4,40,9.75,16.5,null,null,null,"Oct",8.5,47.3,8.5,13]
["Nov",200,8.8000000000000007,139.1,40,8.6999999999999993,17.5,null,null,null,"Nov",7.3,55,7.2,12]
["Dec",200,10.65,48.7,40,10.6,18,null,null,null,"Dec",9,47.1,9,13.2]
[null,null,null,null,null,null,null,null,null,null,"Annual",{"$f":"AVERAGE(L7:L18)","v":10.674999999999999},{"$f":"MAX(M7:M18)","v":193.8},{"$f":"AVERAGE(N7:N18)","v":11.545454545454547},{"$f":"MAX(O7:O18)","v":20.5}]
[]
[null,null,null,null,null,null,null,null,null,{"$f":"+A5","v":2025},"mg/Nm3","Monthly mean of half-hourly averages","Highest half- hourly average","Monthly mean of  daily averages","Highest daily average"]
[null,null,null,null,null,null,null,null,null,"A2","Jan",16.7,43.1,16.8,21.9]
[null,null,null,null,null,null,null,null,null,null,"Feb",18.600000000000001,51.3,18.5,23.7]
[null,null,null,null,null,null,null,null,null,null,"Mar",9.4,48.1,9.3000000000000007,18.100000000000001]
[null,null,null,null,null,null,null,null,null,null,"Apr",6.3,36,6.3,13.5]
[null,null,null,null,null,null,null,null,null,null,"May",6.2,30.9,6.2,13.2]
[null,null,null,null,null,null,null,null,null,null,"Jun",7.5,64.2,7.5,11.3]
[null,null,null,null,null,null,null,null,null,null,"Jul",17.5,66.8,17.399999999999999,22.6]
[null,null,null,null,null,null,null,null,null,null,"Aug",12.3,65.599999999999994,12.1,21.5]
[null,null,null,null,null,null,null,null,null,null,"Sep",10.6,135.1,10.6,17.3]
[null,null,null,null,null,null,null,null,null,null,"Oct",11,90.4,11,16.5]
[null,null,null,null,null,null,null,null,null,null,"Nov",10.3,139.1,10.199999999999999,17.5]
[null,null,null,null,null,null,null,null,null,null,"Dec",12.3,48.7,12.2,18]
[null,null,null,null,null,null,null,null,null,null,"Annual",{"$f":"AVERAGE(L22:L33)","v":11.558333333333332},{"$f":"MAX(M22:M33)","v":139.1},{"$f":"AVERAGE(N22:N33)","v":11.508333333333333},{"$f":"MAX(O22:O33)","v":23.7}]
[]
[null,null,null,null,null,null,null,null,null,{"$f":"+A5","v":2025},"mg/Nm3","Monthly mean of half-hourly averages","Highest half- hourly average","Monthly mean of  daily averages","Highest daily average"]
[null,null,null,null,null,null,null,null,null,"A3","Jan"]
[null,null,null,null,null,null,null,null,null,null,"Feb"]
[null,null,null,null,null,null,null,null,null,null,"Mar"]
[null,null,null,null,null,null,null,null,null,null,"Apr"]
[null,null,null,null,null,null,null,null,null,null,"May"]
[null,null,null,null,null,null,null,null,null,null,"Jun"]
[null,null,null,null,null,null,null,null,null,null,"Jul"]
[null,null,null,null,null,null,null,null,null,null,"Aug"]
[null,null,null,null,null,null,null,null,null,null,"Sep"]
[null,null,null,null,null,null,null,null,null,null,"Oct"]
[null,null,null,null,null,null,null,null,null,null,"Nov"]
["Comments :",null,null,null,null,null,null,null,null,null,"Dec"]
["Line 1 was off for all of July except for a few hours on the 31st which led to no valid days for that line",null,null,null,null,null,null,null,null,null,"Annual",{"$f":"AVERAGE(L37:L48)","v":{"$error":"#DIV/0!"}},{"$f":"MAX(M37:M48)","v":0},{"$f":"AVERAGE(N37:N48)","v":{"$error":"#DIV/0!"}},{"$f":"MAX(O37:O48)","v":0}]
[]
[null,null,null,null,null,null,null,null,null,{"$f":"+A5","v":2025},"mg/Nm3","Monthly mean of half-hourly averages","Highest half- hourly average","Monthly mean of  daily averages","Highest daily average"]
[null,null,null,null,null,null,null,null,null,"A4","Jan"]
[null,null,null,null,null,null,null,null,null,null,"Feb"]
[null,null,null,null,null,null,null,null,null,null,"Mar"]
[null,null,null,null,null,null,null,null,null,null,"Apr"]
[null,null,null,null,null,null,null,null,null,null,"May"]
[null,null,null,null,null,null,null,null,null,null,"Jun"]
[null,null,null,null,null,null,null,null,null,null,"Jul"]
[null,null,null,null,null,null,null,null,null,null,"Aug"]
[null,null,null,null,null,null,null,null,null,null,"Sep"]
[null,null,null,null,null,null,null,null,null,null,"Oct"]
[null,null,null,null,null,null,null,null,null,null,"Nov"]
[null,null,null,null,null,null,null,null,null,null,"Dec"]
[null,null,null,null,null,null,null,null,null,null,"Annual",{"$f":"AVERAGE(L52:L63)","v":{"$error":"#DIV/0!"}},{"$f":"MAX(M52:M63)","v":0},{"$f":"AVERAGE(N52:N63)","v":{"$error":"#DIV/0!"}},{"$f":"MAX(O52:O63)","v":0}]
[]
[null,null,null,null,null,null,null,null,null,{"$f":"+A5","v":2025},"mg/Nm3","Monthly mean of half-hourly averages","Highest half- hourly average","Monthly mean of  daily averages","Highest daily average"]
[null,null,null,null,null,null,null,null,null,"A5","Jan"]
[null,null,null,null,null,null,null,null,null,null,"Feb"]
[null,null,null,null,null,null,null,null,null,null,"Mar"]
[null,null,null,null,null,null,null,null,null,null,"Apr"]
[null,null,null,null,null,null,null,null,null,null,"May"]
[null,null,null,null,null,null,null,null,null,null,"Jun"]
[null,null,null,null,null,null,null,null,null,null,"Jul"]
[null,null,null,null,null,null,null,null,null,null,"Aug"]
[null,null,null,null,null,null,null,null,null,null,"Sep"]
[null,null,null,null,null,null,null,null,null,null,"Oct"]
[null,null,null,null,null,null,null,null,null,null,"Nov"]
[null,null,null,null,null,null,null,null,null,null,"Dec"]
[null,null,null,null,null,null,null,null,null,null,"Annual",{"$f":"AVERAGE(L67:L78)","v":{"$error":"#DIV/0!"}},{"$f":"MAX(M67:M78)","v":0},{"$f":"AVERAGE(N67:N78)","v":{"$error":"#DIV/0!"}},{"$f":"MAX(O67:O78)","v":0}]

{"sheet":"NOx","index":16,"n_rows":79,"n_cols":17,"rows_kept":79,"cut":false,"hidden":false,"merged":[[3,16,7,18],[9,16,11,18],[12,16,15,18],[66,9,78,9],[4,1,4,3],[4,4,4,6],[4,9,4,14],[6,9,18,9],[21,9,33,9],[36,9,48,9],[47,0,47,6],[48,0,51,6],[51,9,63,9],[18,4,18,6]]}
[{"$f":"+'Cover Page'!$B$29","v":"Annual Performance Report 2025"},null,null,null,{"$f":"+'Cover Page'!$B$33","v":"Eastcroft EfW Site"}]
[]
["Monitoring of Oxides of Nitrogen emissions",null,null,"Whole Installation",null,null,"See  Notes in Cell Q3",null,null,{"$f":"+A3","v":"Monitoring of Oxides of Nitrogen emissions"},null,null,null,"Per Combustion Line",null,null,"Notes:"]
[null,null,null,null,null,null,null,null,null,null,null,null,null,null,null,null,"User to add logic to complete Whole installation, Table A5:G18. From the data in Per Combustion Line, Table J6:O79, subject to No. of lines installed"]
[{"$f":"+'Cover Page'!C39","v":2025},"1/2 Hourly Reference Periods",null,null,"Daily Reference Periods"]
["mg/Nm3","1/2 hourly NOx ELV","Monthly mean of half-hourly averages","Highest half- hourly average","Daily NOx ELV","Monthly mean of  daily averages","Highest daily average",null,null,{"$f":"+A5","v":2025},"mg/Nm3","Monthly mean of half-hourly averages","Highest half- hourly average","Monthly mean of  daily averages","Highest daily average"]
["Jan",400,124.85,185.3,180,125.25,145.4,null,null,"A1","Jan",131.4,185.3,131.69999999999999,145.4]
["Feb",400,118.30000000000001,183.4,180,118.19999999999999,142.5,null,null,null,"Feb",124.2,171.5,124.1,142.5]
["Mar",400,117.3,243.1,180,117.35,143.30000000000001,null,null,null,"Mar",124.6,243.1,124.5,143.30000000000001,null,"Whole Installation table A5:G18:"]
["Apr",400,118.2,184.2,180,118.35,132.6,null,null,null,"Apr",124.7,184.2,125,132.6,null,"Mean: for 1/2 hourly and daily periods calculate mean of values across all operational combustion lines for the month"]
["May",400,120.95,202.2,180,120.85000000000001,143.4,null,null,null,"May",129.9,202.2,129.80000000000001,143.4]
["Jun",400,123.75,192.1,180,123.75,144.19999999999999,null,null,null,"Jun",136.19999999999999,192.1,136.30000000000001,144.19999999999999]
["Jul",400,105.85,185.1,180,63.05,158.4,null,null,null,"Jul",85,93.3,"-","-",null,"Maximum: for 1/2 hourly and daily periods use the highest value across all operational combustion lines for the month"]
["Aug",400,135.15,214.2,180,134.80000000000001,170.9,null,null,null,"Aug",146.4,214.2,146.19999999999999,170.9]
["Sep",400,128.5,276.7,180,128,149.69999999999999,null,null,null,"Sep",136,276.7,135,149.69999999999999]
["Oct",400,131.85,194.9,180,131.80000000000001,150.6,null,null,null,"Oct",138.5,194.9,138.4,150.6]
["Nov",400,139.94999999999999,191.6,180,139.94999999999999,155.30000000000001,null,null,null,"Nov",144.6,191.6,144.6,155.30000000000001]
["Dec",400,139.5,199.9,180,139.60000000000002,169.3,null,null,null,"Dec",148.6,199.9,148.80000000000001,169.3]
[null,null,null,null,null,null,null,null,null,null,"Annual",{"$f":"AVERAGE(L7:L18)","v":130.84166666666667},{"$f":"MAX(M7:M18)","v":276.7},{"$f":"AVERAGE(N7:N18)","v":134.94545454545454},{"$f":"MAX(O7:O18)","v":170.9}]
[]
[null,null,null,null,null,null,null,null,null,{"$f":"+A5","v":2025},"mg/Nm3","Monthly mean of half-hourly averages","Highest half- hourly average","Monthly mean of  daily averages","Highest daily average"]
[null,null,null,null,null,null,null,null,null,"A2","Jan",118.3,151.30000000000001,118.8,127.9]
[null,null,null,null,null,null,null,null,null,null,"Feb",112.4,183.4,112.3,129.69999999999999]
[null,null,null,null,null,null,null,null,null,null,"Mar",110,153,110.2,121.4]
[null,null,null,null,null,null,null,null,null,null,"Apr",111.7,182.3,111.7,130]
[null,null,null,null,null,null,null,null,null,null,"May",112,164.9,111.9,126.5]
[null,null,null,null,null,null,null,null,null,null,"Jun",111.3,183.2,111.2,127.4]
[null,null,null,null,null,null,null,null,null,null,"Jul",126.7,185.1,126.1,158.4]
[null,null,null,null,null,null,null,null,null,null,"Aug",123.9,166.4,123.4,140.4]
[null,null,null,null,null,null,null,null,null,null,"Sep",121,156.6,121,131.19999999999999]
[null,null,null,null,null,null,null,null,null,null,"Oct",125.2,168.1,125.2,136.30000000000001]
[null,null,null,null,null,null,null,null,null,null,"Nov",135.30000000000001,187.5,135.30000000000001,144.30000000000001]
[null,null,null,null,null,null,null,null,null,null,"Dec",130.4,176.3,130.4,145.19999999999999]
[null,null,null,null,null,null,null,null,null,null,"Annual",{"$f":"AVERAGE(L22:L33)","v":119.85000000000001},{"$f":"MAX(M22:M33)","v":187.5},{"$f":"AVERAGE(N22:N33)","v":119.79166666666667},{"$f":"MAX(O22:O33)","v":158.4}]
[]
[null,null,null,null,null,null,null,null,null,{"$f":"+A5","v":2025},"mg/Nm3","Monthly mean of half-hourly averages","Highest half- hourly average","Monthly mean of  daily averages","Highest daily average"]
[null,null,null,null,null,null,null,null,null,"A3","Jan"]
[null,null,null,null,null,null,null,null,null,null,"Feb"]
[null,null,null,null,null,null,null,null,null,null,"Mar"]
[null,null,null,null,null,null,null,null,null,null,"Apr"]
[null,null,null,null,null,null,null,null,null,null,"May"]
[null,null,null,null,null,null,null,null,null,null,"Jun"]
[null,null,null,null,null,null,null,null,null,null,"Jul"]
[null,null,null,null,null,null,null,null,null,null,"Aug"]
[null,null,null,null,null,null,null,null,null,null,"Sep"]
[null,null,null,null,null,null,null,null,null,null,"Oct"]
[null,null,null,null,null,null,null,null,null,null,"Nov"]
["Comments :",null,null,null,null,null,null,null,null,null,"Dec"]
["Line 1 was off for all of July except for a few hours on the 31st which led to no valid days for that line",null,null,null,null,null,null,null,null,null,"Annual",{"$f":"AVERAGE(L37:L48)","v":{"$error":"#DIV/0!"}},{"$f":"MAX(M37:M48)","v":0},{"$f":"AVERAGE(N37:N48)","v":{"$error":"#DIV/0!"}},{"$f":"MAX(O37:O48)","v":0}]
[]
[null,null,null,null,null,null,null,null,null,{"$f":"+A5","v":2025},"mg/Nm3","Monthly mean of half-hourly averages","Highest half- hourly average","Monthly mean of  daily averages","Highest daily average"]
[null,null,null,null,null,null,null,null,null,"A4","Jan"]
[null,null,null,null,null,null,null,null,null,null,"Feb"]
[null,null,null,null,null,null,null,null,null,null,"Mar"]
[null,null,null,null,null,null,null,null,null,null,"Apr"]
[null,null,null,null,null,null,null,null,null,null,"May"]
[null,null,null,null,null,null,null,null,null,null,"Jun"]
[null,null,null,null,null,null,null,null,null,null,"Jul"]
[null,null,null,null,null,null,null,null,null,null,"Aug"]
[null,null,null,null,null,null,null,null,null,null,"Sep"]
[null,null,null,null,null,null,null,null,null,null,"Oct"]
[null,null,null,null,null,null,null,null,null,null,"Nov"]
[null,null,null,null,null,null,null,null,null,null,"Dec"]
[null,null,null,null,null,null,null,null,null,null,"Annual",{"$f":"AVERAGE(L52:L63)","v":{"$error":"#DIV/0!"}},{"$f":"MAX(M52:M63)","v":0},{"$f":"AVERAGE(N52:N63)","v":{"$error":"#DIV/0!"}},{"$f":"MAX(O52:O63)","v":0}]
[]
[null,null,null,null,null,null,null,null,null,{"$f":"+A5","v":2025},"mg/Nm3","Monthly mean of half-hourly averages","Highest half- hourly average","Monthly mean of  daily averages","Highest daily average"]
[null,null,null,null,null,null,null,null,null,"A5","Jan"]
[null,null,null,null,null,null,null,null,null,null,"Feb"]
[null,null,null,null,null,null,null,null,null,null,"Mar"]
[null,null,null,null,null,null,null,null,null,null,"Apr"]
[null,null,null,null,null,null,null,null,null,null,"May"]
[null,null,null,null,null,null,null,null,null,null,"Jun"]
[null,null,null,null,null,null,null,null,null,null,"Jul"]
[null,null,null,null,null,null,null,null,null,null,"Aug"]
[null,null,null,null,null,null,null,null,null,null,"Sep"]
[null,null,null,null,null,null,null,null,null,null,"Oct"]
[null,null,null,null,null,null,null,null,null,null,"Nov"]
[null,null,null,null,null,null,null,null,null,null,"Dec"]
[null,null,null,null,null,null,null,null,null,null,"Annual",{"$f":"AVERAGE(L67:L78)","v":{"$error":"#DIV/0!"}},{"$f":"MAX(M67:M78)","v":0},{"$f":"AVERAGE(N67:N78)","v":{"$error":"#DIV/0!"}},{"$f":"MAX(O67:O78)","v":0}]

{"sheet":"TOC","index":17,"n_rows":79,"n_cols":17,"rows_kept":79,"cut":false,"hidden":false,"merged":[[3,16,7,18],[9,16,11,18],[12,16,15,18],[66,9,78,9],[4,1,4,3],[4,4,4,6],[4,9,4,14],[6,9,18,9],[21,9,33,9],[36,9,48,9],[47,0,47,6],[48,0,51,6],[51,9,63,9]]}
[{"$f":"+'Cover Page'!$B$29","v":"Annual Performance Report 2025"},null,null,null,{"$f":"+'Cover Page'!$B$33","v":"Eastcroft EfW Site"}]
[]
["Monitoring of Total organic carbon emissions",null,null,"Whole Installation",null,null,"See  Notes in Cell Q3",null,null,{"$f":"+A3","v":"Monitoring of Total organic carbon emissions"},null,null,null,"Per Combustion Line",null,null,"Notes:"]
[null,null,null,null,null,null,null,null,null,null,null,null,null,null,null,null,"User to add logic to complete Whole installation, Table A5:G18. From the data in Per Combustion Line, Table J6:O79, subject to No. of lines installed"]
[{"$f":"+'Cover Page'!C39","v":2025},"1/2 Hourly Reference Periods",null,null,"Daily Reference Periods"]
["mg/Nm3","1/2 hourly TOC ELV","Monthly mean of half-hourly averages","Highest half- hourly average","Daily TOC ELV","Monthly mean of  daily averages","Highest daily average",null,null,{"$f":"+A5","v":2025},"mg/Nm3","Monthly mean of half-hourly averages","Highest half- hourly average","Monthly mean of  daily averages","Highest daily average"]
["Jan",20,0.25,52.6,10,0.25,1.3,null,null,"A1","Jan",0.3,34.700000000000003,0.3,0.9]
["Feb",10,0.25,69.2,10,0.25,1.5,null,null,null,"Feb",0.3,44.3,0.3,1.4]
["Mar",10,0.25,145.1,10,0.25,3.2,null,null,null,"Mar",0.3,145.1,0.3,3.2,null,"Whole Installation table A5:G18:"]
["Apr",10,0.25,28.5,10,0.2,1.3,null,null,null,"Apr",0.3,24.3,0.3,1.3,null,"Mean: for 1/2 hourly and daily periods calculate mean of values across all operational combustion lines for the month"]
["May",10,0.35,485.5,10,0.15000000000000002,0.9,null,null,null,"May",0.6,485.5,0.2,0.7]
["Jun",10,0.2,30.9,10,0.15,0.9,null,null,null,"Jun",0.3,30.9,0.3,0.9]
["Jul",10,2.0499999999999998,118.3,10,0.15,1.4,null,null,null,"Jul",3.3,11.5,0,0,null,"Maximum: for 1/2 hourly and daily periods use the highest value across all operational combustion lines for the month"]
["Aug",10,0.4,43.8,10,0.25,1.7,null,null,null,"Aug",0.5,43.8,0.3,1.7]
["Sep",10,0.2,42.2,10,0.2,1.1000000000000001,null,null,null,"Sep",0.2,42.2,0.2,1.1000000000000001]
["Oct",10,0.2,41.9,10,0.15000000000000002,1.2,null,null,null,"Oct",0.2,13.7,0.1,1]
["Nov",10,0.1,43.1,10,0.1,1,null,null,null,"Nov",0.1,20.2,0.1,0.5]
["Dec",10,0.2,27.2,10,0.2,0.8,null,null,null,"Dec",0.2,27.2,0.2,0.5]
[null,null,null,null,null,null,null,null,null,null,"Annual",{"$f":"AVERAGE(L7:L18)","v":0.54999999999999993},{"$f":"MAX(M7:M18)","v":485.5},{"$f":"AVERAGE(N7:N18)","v":0.2166666666666667},{"$f":"MAX(O7:O18)","v":3.2}]
[]
[null,null,null,null,null,null,null,null,null,{"$f":"+A5","v":2025},"mg/Nm3","Monthly mean of half-hourly averages","Highest half- hourly average","Monthly mean of  daily averages","Highest daily average"]
[null,null,null,null,null,null,null,null,null,"A2","Jan",0.2,52.6,0.2,1.3]
[null,null,null,null,null,null,null,null,null,null,"Feb",0.2,69.2,0.2,1.5]
[null,null,null,null,null,null,null,null,null,null,"Mar",0.2,32.299999999999997,0.2,1.2]
[null,null,null,null,null,null,null,null,null,null,"Apr",0.2,28.5,0.1,0.9]
[null,null,null,null,null,null,null,null,null,null,"May",0.1,41,0.1,0.9]
[null,null,null,null,null,null,null,null,null,null,"Jun",0.1,17.8,0,0.4]
[null,null,null,null,null,null,null,null,null,null,"Jul",0.8,118.3,0.3,1.4]
[null,null,null,null,null,null,null,null,null,null,"Aug",0.3,34.1,0.2,0.8]
[null,null,null,null,null,null,null,null,null,null,"Sep",0.2,41.7,0.2,0.9]
[null,null,null,null,null,null,null,null,null,null,"Oct",0.2,41.9,0.2,1.2]
[null,null,null,null,null,null,null,null,null,null,"Nov",0.1,43.1,0.1,1]
[null,null,null,null,null,null,null,null,null,null,"Dec",0.2,22.9,0.2,0.8]
[null,null,null,null,null,null,null,null,null,null,"Annual",{"$f":"AVERAGE(L22:L33)","v":0.23333333333333339},{"$f":"MAX(M22:M33)","v":118.3},{"$f":"AVERAGE(N22:N33)","v":0.16666666666666666},{"$f":"MAX(O22:O33)","v":1.5}]
[]
[null,null,null,null,null,null,null,null,null,{"$f":"+A5","v":2025},"mg/Nm3","Monthly mean of half-hourly averages","Highest half- hourly average","Monthly mean of  daily averages","Highest daily average"]
[null,null,null,null,null,null,null,null,null,"A3","Jan"]
[null,null,null,null,null,null,null,null,null,null,"Feb"]
[null,null,null,null,null,null,null,null,null,null,"Mar"]
[null,null,null,null,null,null,null,null,null,null,"Apr"]
[null,null,null,null,null,null,null,null,null,null,"May"]
[null,null,null,null,null,null,null,null,null,null,"Jun"]
[null,null,null,null,null,null,null,null,null,null,"Jul"]
[null,null,null,null,null,null,null,null,null,null,"Aug"]
[null,null,null,null,null,null,null,null,null,null,"Sep"]
[null,null,null,null,null,null,null,null,null,null,"Oct"]
[null,null,null,null,null,null,null,null,null,null,"Nov"]
["Comments :",null,null,null,null,null,null,null,null,null,"Dec"]
["From February onwards the permit was varied to a 30 minute ELV of 10 with a compliance requirement of 97% so above data is only meaningful for compliance purposes for daily figures and January half-hour figures. Line 1 was off for all of July except for a few hours on the 31st which led to no valid days for that line.",null,null,null,null,null,null,null,null,null,"Annual",{"$f":"AVERAGE(L37:L48)","v":{"$error":"#DIV/0!"}},{"$f":"MAX(M37:M48)","v":0},{"$f":"AVERAGE(N37:N48)","v":{"$error":"#DIV/0!"}},{"$f":"MAX(O37:O48)","v":0}]
[]
[null,null,null,null,null,null,null,null,null,{"$f":"+A5","v":2025},"mg/Nm3","Monthly mean of half-hourly averages","Highest half- hourly average","Monthly mean of  daily averages","Highest daily average"]
[null,null,null,null,null,null,null,null,null,"A4","Jan"]
[null,null,null,null,null,null,null,null,null,null,"Feb"]
[null,null,null,null,null,null,null,null,null,null,"Mar"]
[null,null,null,null,null,null,null,null,null,null,"Apr"]
[null,null,null,null,null,null,null,null,null,null,"May"]
[null,null,null,null,null,null,null,null,null,null,"Jun"]
[null,null,null,null,null,null,null,null,null,null,"Jul"]
[null,null,null,null,null,null,null,null,null,null,"Aug"]
[null,null,null,null,null,null,null,null,null,null,"Sep"]
[null,null,null,null,null,null,null,null,null,null,"Oct"]
[null,null,null,null,null,null,null,null,null,null,"Nov"]
[null,null,null,null,null,null,null,null,null,null,"Dec"]
[null,null,null,null,null,null,null,null,null,null,"Annual",{"$f":"AVERAGE(L52:L63)","v":{"$error":"#DIV/0!"}},{"$f":"MAX(M52:M63)","v":0},{"$f":"AVERAGE(N52:N63)","v":{"$error":"#DIV/0!"}},{"$f":"MAX(O52:O63)","v":0}]
[]
[null,null,null,null,null,null,null,null,null,{"$f":"+A5","v":2025},"mg/Nm3","Monthly mean of half-hourly averages","Highest half- hourly average","Monthly mean of  daily averages","Highest daily average"]
[null,null,null,null,null,null,null,null,null,"A5","Jan"]
[null,null,null,null,null,null,null,null,null,null,"Feb"]
[null,null,null,null,null,null,null,null,null,null,"Mar"]
[null,null,null,null,null,null,null,null,null,null,"Apr"]
[null,null,null,null,null,null,null,null,null,null,"May"]
[null,null,null,null,null,null,null,null,null,null,"Jun"]
[null,null,null,null,null,null,null,null,null,null,"Jul"]
[null,null,null,null,null,null,null,null,null,null,"Aug"]
[null,null,null,null,null,null,null,null,null,null,"Sep"]
[null,null,null,null,null,null,null,null,null,null,"Oct"]
[null,null,null,null,null,null,null,null,null,null,"Nov"]
[null,null,null,null,null,null,null,null,null,null,"Dec"]
[null,null,null,null,null,null,null,null,null,null,"Annual",{"$f":"AVERAGE(L67:L78)","v":{"$error":"#DIV/0!"}},{"$f":"MAX(M67:M78)","v":0},{"$f":"AVERAGE(N67:N78)","v":{"$error":"#DIV/0!"}},{"$f":"MAX(O67:O78)","v":0}]

{"sheet":"Particulates","index":18,"n_rows":79,"n_cols":17,"rows_kept":79,"cut":false,"hidden":false,"merged":[[4,16,8,18],[10,16,12,18],[13,16,16,18],[66,9,78,9],[4,1,4,3],[4,4,4,6],[4,9,4,14],[6,9,18,9],[21,9,33,9],[36,9,48,9],[47,0,47,6],[48,0,51,6],[51,9,63,9],[18,4,18,6]]}
[{"$f":"+'Cover Page'!$B$29","v":"Annual Performance Report 2025"},null,null,null,{"$f":"+'Cover Page'!$B$33","v":"Eastcroft EfW Site"}]
[]
["Monitoring of Particulate matter emissions",null,null,"Whole Installation",null,null,"See  Notes in Cell Q3",null,null,{"$f":"+A3","v":"Monitoring of Particulate matter emissions"},null,null,null,"Per Combustion Line",null,null,"Notes:"]
[]
[{"$f":"+'Cover Page'!C39","v":2025},"1/2 Hourly Reference Periods",null,null,"Daily Reference Periods",null,null,null,null,null,null,null,null,null,null,null,"User to add logic to complete Whole installation, Table A5:G18. From the data in Per Combustion Line, Table J6:O79, subject to No. of lines installed"]
["mg/Nm3","1/2 hourly PM ELV","Monthly mean of half-hourly averages","Highest half- hourly average","Daily PM ELV","Monthly mean of  daily averages","Highest daily average",null,null,{"$f":"+A5","v":2025},"mg/Nm3","Monthly mean of half-hourly averages","Highest half- hourly average","Monthly mean of  daily averages","Highest daily average"]
["Jan",30,0.30000000000000004,0.8,5,0.30000000000000004,0.4,null,null,"A1","Jan",0.4,0.8,0.4,0.4]
["Feb",30,0.25,1.8,5,0.25,0.4,null,null,null,"Feb",0.3,1,0.3,0.4]
["Mar",30,0.2,1.3,5,0.2,0.3,null,null,null,"Mar",0.2,1.3,0.2,0.3]
["Apr",30,0.2,0.3,5,0.2,0.3,null,null,null,"Apr",0.2,0.3,0.2,0.3,null,"Whole Installation table A5:G18:"]
["May",30,0.2,0.3,5,0.15000000000000002,0.3,null,null,null,"May",0.2,0.3,0.2,0.3,null,"Mean: for 1/2 hourly and daily periods calculate mean of values across all operational combustion lines for the month"]
["Jun",30,0.2,0.6,5,0.15000000000000002,0.3,null,null,null,"Jun",0.2,0.6,0.2,0.3]
["Jul",30,0.2,1.4,5,0.05,0.2,null,null,null,"Jul",0.2,0.4,"-","-"]
["Aug",30,0.2,0.4,5,0.15000000000000002,0.3,null,null,null,"Aug",0.2,0.4,0.1,0.2,null,"Maximum: for 1/2 hourly and daily periods use the highest value across all operational combustion lines for the month"]
["Sep",30,0.30000000000000004,3.9,5,0.30000000000000004,2.1,null,null,null,"Sep",0.2,0.5,0.2,0.3]
["Oct",30,0.3,1.4,5,0.2,0.6,null,null,null,"Oct",0.3,0.5,0.2,0.3]
["Nov",30,0.35,1.6,5,0.35,1.1000000000000001,null,null,null,"Nov",0.2,0.5,0.2,0.3]
["Dec",30,0.3,1.5,5,0.25,0.7,null,null,null,"Dec",0.3,0.5,0.2,0.3]
[null,null,null,null,null,null,null,null,null,null,"Annual",{"$f":"AVERAGE(L7:L18)","v":0.24166666666666661},{"$f":"MAX(M7:M18)","v":1.3},{"$f":"AVERAGE(N7:N18)","v":0.21818181818181817},{"$f":"MAX(O7:O18)","v":0.4}]
[]
[null,null,null,null,null,null,null,null,null,{"$f":"+A5","v":2025},"mg/Nm3","Monthly mean of half-hourly averages","Highest half- hourly average","Monthly mean of  daily averages","Highest daily average"]
[null,null,null,null,null,null,null,null,null,"A2","Jan",{"$f":"'[1]Input Grid'!L58","v":0.2},{"$f":"'[1]Input Grid'!M58","v":0.3},{"$f":"'[1]Input Grid'!O58","v":0.2},{"$f":"'[1]Input Grid'!P58","v":0.2}]
[null,null,null,null,null,null,null,null,null,null,"Feb",{"$f":"'[1]Input Grid'!L59","v":0.2},{"$f":"'[1]Input Grid'!M59","v":1.8},{"$f":"'[1]Input Grid'!O59","v":0.2},{"$f":"'[1]Input Grid'!P59","v":0.3}]
[null,null,null,null,null,null,null,null,null,null,"Mar",{"$f":"'[1]Input Grid'!L60","v":0.2},{"$f":"'[1]Input Grid'!M60","v":0.4},{"$f":"'[1]Input Grid'!O60","v":0.2},{"$f":"'[1]Input Grid'!P60","v":0.2}]
[null,null,null,null,null,null,null,null,null,null,"Apr",{"$f":"'[1]Input Grid'!L61","v":0.2},{"$f":"'[1]Input Grid'!M61","v":0.3},{"$f":"'[1]Input Grid'!O61","v":0.2},{"$f":"'[1]Input Grid'!P61","v":0.2}]
[null,null,null,null,null,null,null,null,null,null,"May",{"$f":"'[1]Input Grid'!L62","v":0.2},{"$f":"'[1]Input Grid'!M62","v":0.3},{"$f":"'[1]Input Grid'!O62","v":0.1},{"$f":"'[1]Input Grid'!P62","v":0.2}]
[null,null,null,null,null,null,null,null,null,null,"Jun",{"$f":"'[1]Input Grid'!L63","v":0.2},{"$f":"'[1]Input Grid'!M63","v":0.4},{"$f":"'[1]Input Grid'!O63","v":0.1},{"$f":"'[1]Input Grid'!P63","v":0.2}]
[null,null,null,null,null,null,null,null,null,null,"Jul",{"$f":"'[1]Input Grid'!L64","v":0.2},{"$f":"'[1]Input Grid'!M64","v":1.4},{"$f":"'[1]Input Grid'!O64","v":0.1},{"$f":"'[1]Input Grid'!P64","v":0.2}]
[null,null,null,null,null,null,null,null,null,null,"Aug",{"$f":"'[1]Input Grid'!L65","v":0.2},{"$f":"'[1]Input Grid'!M65","v":0.3},{"$f":"'[1]Input Grid'!O65","v":0.2},{"$f":"'[1]Input Grid'!P65","v":0.3}]
[null,null,null,null,null,null,null,null,null,null,"Sep",{"$f":"'[1]Input Grid'!L66","v":0.4},{"$f":"'[1]Input Grid'!M66","v":3.9},{"$f":"'[1]Input Grid'!O66","v":0.4},{"$f":"'[1]Input Grid'!P66","v":2.1}]
[null,null,null,null,null,null,null,null,null,null,"Oct",{"$f":"'[1]Input Grid'!L67","v":0.3},{"$f":"'[1]Input Grid'!M67","v":1.4},{"$f":"'[1]Input Grid'!O67","v":0.2},{"$f":"'[1]Input Grid'!P67","v":0.6}]
[null,null,null,null,null,null,null,null,null,null,"Nov",{"$f":"'[1]Input Grid'!L68","v":0.5},{"$f":"'[1]Input Grid'!M68","v":1.6},{"$f":"'[1]Input Grid'!O68","v":0.5},{"$f":"'[1]Input Grid'!P68","v":1.1000000000000001}]
[null,null,null,null,null,null,null,null,null,null,"Dec",{"$f":"'[1]Input Grid'!L69","v":0.3},{"$f":"'[1]Input Grid'!M69","v":1.5},{"$f":"'[1]Input Grid'!O69","v":0.3},{"$f":"'[1]Input Grid'!P69","v":0.7}]
[null,null,null,null,null,null,null,null,null,null,"Annual",{"$f":"AVERAGE(L22:L33)","v":0.2583333333333333},{"$f":"MAX(M22:M33)","v":3.9},{"$f":"AVERAGE(N22:N33)","v":0.22500000000000001},{"$f":"MAX(O22:O33)","v":2.1}]
[]
[null,null,null,null,null,null,null,null,null,{"$f":"+A5","v":2025},"mg/Nm3","Monthly mean of half-hourly averages","Highest half- hourly average","Monthly mean of  daily averages","Highest daily average"]
[null,null,null,null,null,null,null,null,null,"A3","Jan"]
[null,null,null,null,null,null,null,null,null,null,"Feb"]
[null,null,null,null,null,null,null,null,null,null,"Mar"]
[null,null,null,null,null,null,null,null,null,null,"Apr"]
[null,null,null,null,null,null,null,null,null,null,"May"]
[null,null,null,null,null,null,null,null,null,null,"Jun"]
[null,null,null,null,null,null,null,null,null,null,"Jul"]
[null,null,null,null,null,null,null,null,null,null,"Aug"]
[null,null,null,null,null,null,null,null,null,null,"Sep"]
[null,null,null,null,null,null,null,null,null,null,"Oct"]
[null,null,null,null,null,null,null,null,null,null,"Nov"]
["Comments :",null,null,null,null,null,null,null,null,null,"Dec"]
["Line 1 was off for all of July except for a few hours on the 31st which led to no valid days for that line",null,null,null,null,null,null,null,null,null,"Annual",{"$f":"AVERAGE(L37:L48)","v":{"$error":"#DIV/0!"}},{"$f":"MAX(M37:M48)","v":0},{"$f":"AVERAGE(N37:N48)","v":{"$error":"#DIV/0!"}},{"$f":"MAX(O37:O48)","v":0}]
[]
[null,null,null,null,null,null,null,null,null,{"$f":"+A5","v":2025},"mg/Nm3","Monthly mean of half-hourly averages","Highest half- hourly average","Monthly mean of  daily averages","Highest daily average"]
[null,null,null,null,null,null,null,null,null,"A4","Jan"]
[null,null,null,null,null,null,null,null,null,null,"Feb"]
[null,null,null,null,null,null,null,null,null,null,"Mar"]
[null,null,null,null,null,null,null,null,null,null,"Apr"]
[null,null,null,null,null,null,null,null,null,null,"May"]
[null,null,null,null,null,null,null,null,null,null,"Jun"]
[null,null,null,null,null,null,null,null,null,null,"Jul"]
[null,null,null,null,null,null,null,null,null,null,"Aug"]
[null,null,null,null,null,null,null,null,null,null,"Sep"]
[null,null,null,null,null,null,null,null,null,null,"Oct"]
[null,null,null,null,null,null,null,null,null,null,"Nov"]
[null,null,null,null,null,null,null,null,null,null,"Dec"]
[null,null,null,null,null,null,null,null,null,null,"Annual",{"$f":"AVERAGE(L52:L63)","v":{"$error":"#DIV/0!"}},{"$f":"MAX(M52:M63)","v":0},{"$f":"AVERAGE(N52:N63)","v":{"$error":"#DIV/0!"}},{"$f":"MAX(O52:O63)","v":0}]
[]
[null,null,null,null,null,null,null,null,null,{"$f":"+A5","v":2025},"mg/Nm3","Monthly mean of half-hourly averages","Highest half- hourly average","Monthly mean of  daily averages","Highest daily average"]
[null,null,null,null,null,null,null,null,null,"A5","Jan"]
[null,null,null,null,null,null,null,null,null,null,"Feb"]
[null,null,null,null,null,null,null,null,null,null,"Mar"]
[null,null,null,null,null,null,null,null,null,null,"Apr"]
[null,null,null,null,null,null,null,null,null,null,"May"]
[null,null,null,null,null,null,null,null,null,null,"Jun"]
[null,null,null,null,null,null,null,null,null,null,"Jul"]
[null,null,null,null,null,null,null,null,null,null,"Aug"]
[null,null,null,null,null,null,null,null,null,null,"Sep"]
[null,null,null,null,null,null,null,null,null,null,"Oct"]
[null,null,null,null,null,null,null,null,null,null,"Nov"]
[null,null,null,null,null,null,null,null,null,null,"Dec"]
[null,null,null,null,null,null,null,null,null,null,"Annual",{"$f":"AVERAGE(L67:L78)","v":{"$error":"#DIV/0!"}},{"$f":"MAX(M67:M78)","v":0},{"$f":"AVERAGE(N67:N78)","v":{"$error":"#DIV/0!"}},{"$f":"MAX(O67:O78)","v":0}]

{"sheet":"CO 0.5 hourly","index":19,"n_rows":82,"n_cols":17,"rows_kept":82,"cut":false,"hidden":false,"merged":[[4,0,5,6],[6,16,10,18],[12,16,14,18],[15,16,18,18],[69,9,81,9],[7,1,7,3],[7,4,7,6],[7,9,7,14],[9,9,21,9],[24,9,36,9],[39,9,51,9],[50,0,50,6],[51,0,54,6],[54,9,66,9]]}
[{"$f":"+'Cover Page'!$B$29","v":"Annual Performance Report 2025"},null,null,null,{"$f":"+'Cover Page'!$B$33","v":"Eastcroft EfW Site"}]
[]
["Monitoring of Carbon Monoxide (half hourly)",null,null,"Whole Installation",null,null,"See  Notes in Cell Q3",null,null,{"$f":"+A3","v":"Monitoring of Carbon Monoxide (half hourly)"},null,null,null,"Per Combustion Line",null,null,"Notes:"]
[]
["Please complete this tab for your plant if you have 1/2 hourly CO ELVs; otherwise, leave it blank and complete the CO 95% 10 min tab"]
[]
[null,null,null,null,null,null,null,null,null,null,null,null,null,null,null,null,"User to add logic to complete Whole installation, Table A5:G18. From the data in Per Combustion Line, Table J6:O79, subject to No. of lines installed"]
[{"$f":"+'Cover Page'!C39","v":2025},"1/2 Hourly Reference Periods",null,null,"Daily Reference Periods"]
["mg/Nm3","1/2 hourly CO ELV","Monthly mean of half-hourly averages","Highest half- hourly average","Daily CO ELV","Monthly mean of  daily averages","Highest daily average",null,null,{"$f":"+A8","v":2025},"mg/Nm3","Monthly mean of half-hourly averages","Highest half- hourly average","Monthly mean of  daily averages","Highest daily average"]
["Jan",100,null,null,50,null,null,null,null,"A1","Jan"]
["Feb",{"$f":"+B10","v":100},null,null,{"$f":"+E10","v":50},null,null,null,null,null,"Feb"]
["Mar",{"$f":"+B11","v":100},null,null,{"$f":"+E11","v":50},null,null,null,null,null,"Mar",null,null,null,null,null,"Whole Installation table A5:G18:"]
["Apr",100,null,null,50,null,null,null,null,null,"Apr",null,null,null,null,null,"Mean: for 1/2 hourly and daily periods calculate mean of values across all operational combustion lines for the month"]
["May",100,null,null,50,null,null,null,null,null,"May"]
["Jun",100,null,null,50,null,null,null,null,null,"Jun"]
["Jul",100,null,null,50,null,null,null,null,null,"Jul",null,null,null,null,null,"Maximum: for 1/2 hourly and daily periods use the highest value across all operational combustion lines for the month"]
["Aug",100,null,null,50,null,null,null,null,null,"Aug"]
["Sep",100,null,null,50,null,null,null,null,null,"Sep"]
["Oct",100,null,null,50,null,null,null,null,null,"Oct"]
["Nov",100,null,null,50,null,null,null,null,null,"Nov"]
["Dec",100,null,null,50,null,null,null,null,null,"Dec"]
[null,null,null,null,null,null,null,null,null,null,"Annual",{"$f":"AVERAGE(L10:L21)","v":{"$error":"#DIV/0!"}},{"$f":"MAX(M10:M21)","v":0},{"$f":"AVERAGE(N10:N21)","v":{"$error":"#DIV/0!"}},{"$f":"MAX(O10:O21)","v":0}]
[]
[null,null,null,null,null,null,null,null,null,{"$f":"+A8","v":2025},"mg/Nm3","Monthly mean of half-hourly averages","Highest half- hourly average","Monthly mean of  daily averages","Highest daily average"]
[null,null,null,null,null,null,null,null,null,"A2","Jan"]
[null,null,null,null,null,null,null,null,null,null,"Feb"]
[null,null,null,null,null,null,null,null,null,null,"Mar"]
[null,null,null,null,null,null,null,null,null,null,"Apr"]
[null,null,null,null,null,null,null,null,null,null,"May"]
[null,null,null,null,null,null,null,null,null,null,"Jun"]
[null,null,null,null,null,null,null,null,null,null,"Jul"]
[null,null,null,null,null,null,null,null,null,null,"Aug"]
[null,null,null,null,null,null,null,null,null,null,"Sep"]
[null,null,null,null,null,null,null,null,null,null,"Oct"]
[null,null,null,null,null,null,null,null,null,null,"Nov"]
[null,null,null,null,null,null,null,null,null,null,"Dec"]
[null,null,null,null,null,null,null,null,null,null,"Annual",{"$f":"AVERAGE(L25:L36)","v":{"$error":"#DIV/0!"}},{"$f":"MAX(M25:M36)","v":0},{"$f":"AVERAGE(N25:N36)","v":{"$error":"#DIV/0!"}},{"$f":"MAX(O25:O36)","v":0}]
[]
[null,null,null,null,null,null,null,null,null,{"$f":"+A8","v":2025},"mg/Nm3","Monthly mean of half-hourly averages","Highest half- hourly average","Monthly mean of  daily averages","Highest daily average"]
[null,null,null,null,null,null,null,null,null,"A3","Jan"]
[null,null,null,null,null,null,null,null,null,null,"Feb"]
[null,null,null,null,null,null,null,null,null,null,"Mar"]
[null,null,null,null,null,null,null,null,null,null,"Apr"]
[null,null,null,null,null,null,null,null,null,null,"May"]
[null,null,null,null,null,null,null,null,null,null,"Jun"]
[null,null,null,null,null,null,null,null,null,null,"Jul"]
[null,null,null,null,null,null,null,null,null,null,"Aug"]
[null,null,null,null,null,null,null,null,null,null,"Sep"]
[null,null,null,null,null,null,null,null,null,null,"Oct"]
[null,null,null,null,null,null,null,null,null,null,"Nov"]
["Comments :",null,null,null,null,null,null,null,null,null,"Dec"]
[null,null,null,null,null,null,null,null,null,null,"Annual",{"$f":"AVERAGE(L40:L51)","v":{"$error":"#DIV/0!"}},{"$f":"MAX(M40:M51)","v":0},{"$f":"AVERAGE(N40:N51)","v":{"$error":"#DIV/0!"}},{"$f":"MAX(O40:O51)","v":0}]
[]
[null,null,null,null,null,null,null,null,null,{"$f":"+A8","v":2025},"mg/Nm3","Monthly mean of half-hourly averages","Highest half- hourly average","Monthly mean of  daily averages","Highest daily average"]
[null,null,null,null,null,null,null,null,null,"A4","Jan"]
[null,null,null,null,null,null,null,null,null,null,"Feb"]
[null,null,null,null,null,null,null,null,null,null,"Mar"]
[null,null,null,null,null,null,null,null,null,null,"Apr"]
[null,null,null,null,null,null,null,null,null,null,"May"]
[null,null,null,null,null,null,null,null,null,null,"Jun"]
[null,null,null,null,null,null,null,null,null,null,"Jul"]
[null,null,null,null,null,null,null,null,null,null,"Aug"]
[null,null,null,null,null,null,null,null,null,null,"Sep"]
[null,null,null,null,null,null,null,null,null,null,"Oct"]
[null,null,null,null,null,null,null,null,null,null,"Nov"]
[null,null,null,null,null,null,null,null,null,null,"Dec"]
[null,null,null,null,null,null,null,null,null,null,"Annual",{"$f":"AVERAGE(L55:L66)","v":{"$error":"#DIV/0!"}},{"$f":"MAX(M55:M66)","v":0},{"$f":"AVERAGE(N55:N66)","v":{"$error":"#DIV/0!"}},{"$f":"MAX(O55:O66)","v":0}]
[]
[null,null,null,null,null,null,null,null,null,{"$f":"+A8","v":2025},"mg/Nm3","Monthly mean of half-hourly averages","Highest half- hourly average","Monthly mean of  daily averages","Highest daily average"]
[null,null,null,null,null,null,null,null,null,"A5","Jan"]
[null,null,null,null,null,null,null,null,null,null,"Feb"]
[null,null,null,null,null,null,null,null,null,null,"Mar"]
[null,null,null,null,null,null,null,null,null,null,"Apr"]
[null,null,null,null,null,null,null,null,null,null,"May"]
[null,null,null,null,null,null,null,null,null,null,"Jun"]
[null,null,null,null,null,null,null,null,null,null,"Jul"]
[null,null,null,null,null,null,null,null,null,null,"Aug"]
[null,null,null,null,null,null,null,null,null,null,"Sep"]
[null,null,null,null,null,null,null,null,null,null,"Oct"]
[null,null,null,null,null,null,null,null,null,null,"Nov"]
[null,null,null,null,null,null,null,null,null,null,"Dec"]
[null,null,null,null,null,null,null,null,null,null,"Annual",{"$f":"AVERAGE(L70:L81)","v":{"$error":"#DIV/0!"}},{"$f":"MAX(M70:M81)","v":0},{"$f":"AVERAGE(N70:N81)","v":{"$error":"#DIV/0!"}},{"$f":"MAX(O70:O81)","v":0}]

{"sheet":"CO 95% 10 min","index":20,"n_rows":82,"n_cols":19,"rows_kept":82,"cut":false,"hidden":false,"merged":[[4,0,5,7],[6,18,10,20],[12,18,14,20],[15,18,18,20],[69,10,81,10],[7,1,7,4],[7,5,7,7],[7,10,7,16],[9,10,21,10],[24,10,36,10],[39,10,51,10],[50,0,50,7],[51,0,54,7],[54,10,66,10]]}
[{"$f":"+'Cover Page'!$B$29","v":"Annual Performance Report 2025"},null,null,null,{"$f":"+'Cover Page'!$B$33","v":"Eastcroft EfW Site"}]
[]
["Monitoring of Carbon Monoxide (10-minute avg)",null,null,null,"Whole Installation",null,null,"See  Notes in Cell S3",null,{"$f":"+A3","v":"Monitoring of Carbon Monoxide (10-minute avg)"},null,null,null,null,"Per Combustion Line",null,"Notes:",null,"Notes:"]
[]
["Please complete this tab for your plant if you have 10-minute average CO ELVs; otherwise, leave it blank and complete the CO 0.5 hourly tab"]
[]
[null,null,null,null,null,null,null,null,null,null,null,null,null,null,null,null,null,null,"User to add logic to complete Whole installation, Table A5:H18. From the data in Per Combustion Line, Table K6:Q79, subject to No. of lines installed"]
[{"$f":"+'Cover Page'!C39","v":2025},"10-minute Reference Periods",null,null,null,"Daily Reference Periods"]
["mg/Nm3","95%ile 10-min avg CO ELV","Highest daily 95%ile 10-min average","Monthly mean of 10-min averages","Highest 10-min average","Daily CO ELV","Monthly mean of  daily averages","Highest daily average",null,null,{"$f":"+A8","v":2025},"mg/Nm3","Highest daily 95%ile 10-min average","Monthly mean of 10-min averages","Highest 10-min average","Monthly mean of  daily averages","Highest daily average"]
["Jan",150,48.7,7,484.2,50,6.9,14,null,null,"A1","Jan",48.7,8.1,402.5,8.1,14]
["Feb",{"$f":"+B10","v":150},56,7.45,817.8,{"$f":"+F10","v":50},7.45,14,null,null,null,"Feb",56,8.9,584.5,8.9,13.5]
["Mar",{"$f":"+B11","v":150},52.4,7,591.70000000000005,{"$f":"+F11","v":50},7,15.8,null,null,null,"Mar",26,8.1,591.70000000000005,8.1999999999999993,15.8,null,"Whole Installation table A5:H18:"]
["Apr",150,57.5,8.25,956.2,50,8.1999999999999993,17.2,null,null,null,"Apr",57.5,10.199999999999999,956.2,10.1,17.2,null,"Mean: for 10-min and daily periods use average of all operational combustion lines."]
["May",150,36.700000000000003,10.35,14112.9,50,6.9,15.1,null,null,null,"May",36.700000000000003,14.7,14112.9,7.8,15.1]
["Jun",150,19.2,5.4,430,50,5.35,8.6999999999999993,null,null,null,"Jun",19.2,5.8,430,5.7,8.6999999999999993]
["Jul",150,320.5,18.649999999999999,4179.3999999999996,50,3.15,25.1,null,null,null,"Jul",77.099999999999994,23.7,120.3,"-","-",null,"Maximum: for 10-min and daily periods use the highest of all operational combustion lines in any month."]
["Aug",150,20.2,6,3024.9,50,5.4,25.9,null,null,null,"Aug",20.2,6.8,3024.9,5.6,25.9]
["Sep",150,58.8,6.1,1437.2,50,5.65,12,null,null,null,"Sep",58.8,6.1,1437.2,5.2,12]
["Oct",150,138.9,7.8999999999999995,507.2,50,7.85,19.7,null,null,null,"Oct",138.9,7.6,507.2,7.5,19.7]
["Nov",150,37.299999999999997,9.5500000000000007,604.29999999999995,50,9.5500000000000007,17.8,null,null,null,"Nov",37.299999999999997,8.6,246.5,8.6,13.6]
["Dec",150,59.6,7.6999999999999993,707.3,50,7.4,16.8,null,null,null,"Dec",59.6,6.8,515.20000000000005,6.3,12.5]
[null,null,null,null,null,null,null,null,null,null,null,"Annual",{"$f":"AVERAGE(M10:M21)","v":52.999999999999993},null,{"$f":"MAX(O10:O21)","v":14112.9},{"$f":"AVERAGE(P10:P21)","v":7.4545454545454533},{"$f":"MAX(Q10:Q21)","v":25.9}]
[]
[null,null,null,null,null,null,null,null,null,null,{"$f":"+A8","v":2025},"mg/Nm3","Highest daily 95%ile 10-min average","Monthly mean of 10-min averages","Highest 10-min average","Monthly mean of  daily averages","Highest daily average"]
[null,null,null,null,null,null,null,null,null,null,"A2","Jan",19.2,5.9,484.2,5.7,10.5]
[null,null,null,null,null,null,null,null,null,null,null,"Feb",30.1,6,817.8,6,14]
[null,null,null,null,null,null,null,null,null,null,null,"Mar",52.4,5.9,256.5,5.8,10.9]
[null,null,null,null,null,null,null,null,null,null,null,"Apr",24.7,6.3,717,6.3,11.8]
[null,null,null,null,null,null,null,null,null,null,null,"May",20.3,6,417.5,6,8.6999999999999993]
[null,null,null,null,null,null,null,null,null,null,null,"Jun",13.8,5,265.89999999999998,5,8.1999999999999993]
[null,null,null,null,null,null,null,null,null,null,null,"Jul",320.5,13.6,4179.3999999999996,6.3,25.1]
[null,null,null,null,null,null,null,null,null,null,null,"Aug",16.600000000000001,5.2,776.2,5.2,12.9]
[null,null,null,null,null,null,null,null,null,null,null,"Sep",14.1,6.1,191.2,6.1,8.8000000000000007]
[null,null,null,null,null,null,null,null,null,null,null,"Oct",35,8.1999999999999993,428.9,8.1999999999999993,12.5]
[null,null,null,null,null,null,null,null,null,null,null,"Nov",20,10.5,604.29999999999995,10.5,17.8]
[null,null,null,null,null,null,null,null,null,null,null,"Dec",23.3,8.6,707.3,8.5,16.8]
[null,null,null,null,null,null,null,null,null,null,null,"Annual",{"$f":"AVERAGE(M25:M36)","v":49.166666666666664},null,{"$f":"MAX(O25:O36)","v":4179.3999999999996},{"$f":"AVERAGE(P25:P36)","v":6.6333333333333329},{"$f":"MAX(Q25:Q36)","v":25.1}]
[]
[null,null,null,null,null,null,null,null,null,null,{"$f":"+A8","v":2025},"mg/Nm3","Highest daily 95%ile 10-min average","Monthly mean of 10-min averages","Highest 10-min average","Monthly mean of  daily averages","Highest daily average"]
[null,null,null,null,null,null,null,null,null,null,"A3","Jan"]
[null,null,null,null,null,null,null,null,null,null,null,"Feb"]
[null,null,null,null,null,null,null,null,null,null,null,"Mar"]
[null,null,null,null,null,null,null,null,null,null,null,"Apr"]
[null,null,null,null,null,null,null,null,null,null,null,"May"]
[null,null,null,null,null,null,null,null,null,null,null,"Jun"]
[null,null,null,null,null,null,null,null,null,null,null,"Jul"]
[null,null,null,null,null,null,null,null,null,null,null,"Aug"]
[null,null,null,null,null,null,null,null,null,null,null,"Sep"]
[null,null,null,null,null,null,null,null,null,null,null,"Oct"]
[null,null,null,null,null,null,null,null,null,null,null,"Nov"]
["Comments :",null,null,null,null,null,null,null,null,null,null,"Dec"]
["Environment Agency explanatory note: The 10-minute average ELV is based on the “95th percentile”. In this case this means that 95% of the 10 minute averages in the relevant 24-hour period (i.e. 137) must be below 150 mg/Nm3, and 5% (i.e. 7) are allowed to be any value above 150 mg/Nm3. Whilst we expect operators to minimise CO emissions at all times, it is perfectly acceptable for the value of the maximum 10-minute average to be above 150 mg/Nm3, provided the 95th percentile ELV has been met for that period. ",null,null,null,null,null,null,null,null,null,null,"Annual",{"$f":"AVERAGE(M40:M51)","v":{"$error":"#DIV/0!"}},null,{"$f":"MAX(O40:O51)","v":0},{"$f":"AVERAGE(P40:P51)","v":{"$error":"#DIV/0!"}},{"$f":"MAX(Q40:Q51)","v":0}]
[]
[null,null,null,null,null,null,null,null,null,null,{"$f":"+A8","v":2025},"mg/Nm3","Highest daily 95%ile 10-min average","Monthly mean of 10-min averages","Highest 10-min average","Monthly mean of  daily averages","Highest daily average"]
[null,null,null,null,null,null,null,null,null,null,"A4","Jan"]
[null,null,null,null,null,null,null,null,null,null,null,"Feb"]
[null,null,null,null,null,null,null,null,null,null,null,"Mar"]
[null,null,null,null,null,null,null,null,null,null,null,"Apr"]
[null,null,null,null,null,null,null,null,null,null,null,"May"]
[null,null,null,null,null,null,null,null,null,null,null,"Jun"]
[null,null,null,null,null,null,null,null,null,null,null,"Jul"]
[null,null,null,null,null,null,null,null,null,null,null,"Aug"]
[null,null,null,null,null,null,null,null,null,null,null,"Sep"]
[null,null,null,null,null,null,null,null,null,null,null,"Oct"]
[null,null,null,null,null,null,null,null,null,null,null,"Nov"]
[null,null,null,null,null,null,null,null,null,null,null,"Dec"]
[null,null,null,null,null,null,null,null,null,null,null,"Annual",{"$f":"AVERAGE(M55:M66)","v":{"$error":"#DIV/0!"}},null,{"$f":"MAX(O55:O66)","v":0},{"$f":"AVERAGE(P55:P66)","v":{"$error":"#DIV/0!"}},{"$f":"MAX(Q55:Q66)","v":0}]
[]
[null,null,null,null,null,null,null,null,null,null,{"$f":"+A8","v":2025},"mg/Nm3","95%ile 10-min avg maximum","Monthly CO 10-min avg mean","10-min avg maximum","Monthly daily mean","Monthly daily maximum"]
[null,null,null,null,null,null,null,null,null,null,"A5","Jan"]
[null,null,null,null,null,null,null,null,null,null,null,"Feb"]
[null,null,null,null,null,null,null,null,null,null,null,"Mar"]
[null,null,null,null,null,null,null,null,null,null,null,"Apr"]
[null,null,null,null,null,null,null,null,null,null,null,"May"]
[null,null,null,null,null,null,null,null,null,null,null,"Jun"]
[null,null,null,null,null,null,null,null,null,null,null,"Jul"]
[null,null,null,null,null,null,null,null,null,null,null,"Aug"]
[null,null,null,null,null,null,null,null,null,null,null,"Sep"]
[null,null,null,null,null,null,null,null,null,null,null,"Oct"]
[null,null,null,null,null,null,null,null,null,null,null,"Nov"]
[null,null,null,null,null,null,null,null,null,null,null,"Dec"]
[null,null,null,null,null,null,null,null,null,null,null,"Annual",{"$f":"AVERAGE(M70:M81)","v":{"$error":"#DIV/0!"}},null,{"$f":"MAX(O70:O81)","v":0},{"$f":"AVERAGE(P70:P81)","v":{"$error":"#DIV/0!"}},{"$f":"MAX(Q70:Q81)","v":0}]

{"sheet":"NH3","index":21,"n_rows":79,"n_cols":17,"rows_kept":79,"cut":false,"hidden":false,"merged":[[3,16,7,18],[9,16,11,18],[12,16,15,18],[66,9,78,9],[4,1,4,3],[4,4,4,6],[4,9,4,14],[6,9,18,9],[21,9,33,9],[36,9,48,9],[47,0,47,6],[48,0,51,6],[51,9,63,9],[18,4,18,6]]}
[{"$f":"+'Cover Page'!$B$29","v":"Annual Performance Report 2025"},null,null,null,{"$f":"+'Cover Page'!$B$33","v":"Eastcroft EfW Site"}]
[]
["Monitoring of Ammnonia emissions ",null,null,"Whole Installation",null,null,"See  Notes in Cell Q3",null,null,{"$f":"+A3","v":"Monitoring of Ammnonia emissions "},null,null,null,"Per Combustion Line",null,null,"Notes:"]
[null,null,null,null,null,null,null,null,null,null,null,null,null,null,null,null,"User to add logic to complete Whole installation, Table A5:G18. From the data in Per Combustion Line, Table J6:O79, subject to No. of lines installed"]
[{"$f":"+'Cover Page'!C39","v":2025},"1/2 Hourly Reference Periods",null,null,"Daily Reference Periods"]
["mg/Nm3","1/2 hourly NH3 ELV","Monthly mean of half-hourly averages","Highest half- hourly average","Daily NH3 ELV","Monthly mean of  daily averages","Highest daily average",null,null,{"$f":"+A5","v":2025},"mg/Nm3","Monthly mean of half-hourly averages","Highest half- hourly average","Monthly mean of  daily averages","Highest daily average"]
["Jan","None",{"$f":"(L7+L22)/2","v":0.7},{"$f":"MAX(M7,M22)","v":4.2},15,{"$f":"(N7+N22)/2","v":0.65},{"$f":"MAX(O7,O22)","v":1.4},null,null,"A1","Jan",0.6,3.4,0.5,0.8]
["Feb",{"$f":"+B7","v":"None"},{"$f":"(L8+L23)/2","v":0.7},{"$f":"MAX(M8,M23)","v":10.1},15,{"$f":"(N8+N23)/2","v":0.60000000000000009},{"$f":"MAX(O8,O23)","v":1.3},null,null,null,"Feb",0.5,5,0.4,0.9]
["Mar",{"$f":"+B8","v":"None"},0.5,16.600000000000001,15,0.45,1.2,null,null,null,"Mar",0.4,16.600000000000001,0.4,1.2,null,"Whole Installation table A5:G18:"]
["Apr","None",0.35,5.5,15,0.35,0.7,null,null,null,"Apr",0.3,5.5,0.3,0.5,null,"Mean: for 1/2 hourly and daily periods calculate mean of values across all operational combustion lines for the month"]
["May","None",0.5,17.399999999999999,15,0.45,0.9,null,null,null,"May",0.5,17.399999999999999,0.4,0.8]
["Jun","None",0.8,5.4,15,0.7,1.6,null,null,null,"Jun",0.7,2.4,0.6,0.9]
["Jul","None",1.7,7.9,15,0.65,2.4,null,null,null,"Jul",2,3.6,"-","-",null,"Maximum: for 1/2 hourly and daily periods use the highest value across all operational combustion lines for the month"]
["Aug","None",1.25,12.1,15,1,2.4,null,null,null,"Aug",1.4,12.1,1,1.9]
["Sep","None",0.55000000000000004,4.8,15,0.5,0.9,null,null,null,"Sep",0.6,4.8,0.5,0.8]
["Oct","None",0.4,3,15,0.35,0.7,null,null,null,"Oct",0.4,1.9,0.3,0.6]
["Nov","None",0.4,2.1,15,0.35,0.9,null,null,null,"Nov",0.4,2.1,0.4,0.9]
["Dec","None",0.35,57.3,15,0.3,0.7,null,null,null,"Dec",0.4,57.3,0.3,0.6]
[null,null,null,null,null,null,null,null,null,null,"Annual",{"$f":"AVERAGE(L7:L18)","v":0.68333333333333346},{"$f":"MAX(M7:M18)","v":57.3},{"$f":"AVERAGE(N7:N18)","v":0.46363636363636362},{"$f":"MAX(O7:O18)","v":1.9}]
[]
[null,null,null,null,null,null,null,null,null,{"$f":"+A5","v":2025},"mg/Nm3","Monthly mean of half-hourly averages","Highest half- hourly average","Monthly mean of  daily averages","Highest daily average"]
[null,null,null,null,null,null,null,null,null,"A2","Jan",0.8,4.2,0.8,1.4]
[null,null,null,null,null,null,null,null,null,null,"Feb",0.9,10.1,0.8,1.3]
[null,null,null,null,null,null,null,null,null,null,"Mar",0.6,2.2000000000000002,0.5,1]
[null,null,null,null,null,null,null,null,null,null,"Apr",0.4,2.5,0.4,0.7]
[null,null,null,null,null,null,null,null,null,null,"May",0.5,2.4,0.5,0.9]
[null,null,null,null,null,null,null,null,null,null,"Jun",0.9,5.4,0.8,1.6]
[null,null,null,null,null,null,null,null,null,null,"Jul",1.4,7.9,1.3,2.4]
[null,null,null,null,null,null,null,null,null,null,"Aug",1.1000000000000001,9.1,1,2.4]
[null,null,null,null,null,null,null,null,null,null,"Sep",0.5,4,0.5,0.9]
[null,null,null,null,null,null,null,null,null,null,"Oct",0.4,3,0.4,0.7]
[null,null,null,null,null,null,null,null,null,null,"Nov",0.4,1.6,0.3,0.6]
[null,null,null,null,null,null,null,null,null,null,"Dec",0.3,2.7,0.3,0.7]
[null,null,null,null,null,null,null,null,null,null,"Annual",{"$f":"AVERAGE(L22:L33)","v":0.68333333333333346},{"$f":"MAX(M22:M33)","v":10.1},{"$f":"AVERAGE(N22:N33)","v":0.6333333333333333},{"$f":"MAX(O22:O33)","v":2.4}]
[]
[null,null,null,null,null,null,null,null,null,{"$f":"+A5","v":2025},"mg/Nm3","Monthly mean of half-hourly averages","Highest half- hourly average","Monthly mean of  daily averages","Highest daily average"]
[null,null,null,null,null,null,null,null,null,"A3","Jan"]
[null,null,null,null,null,null,null,null,null,null,"Feb"]
[null,null,null,null,null,null,null,null,null,null,"Mar"]
[null,null,null,null,null,null,null,null,null,null,"Apr"]
[null,null,null,null,null,null,null,null,null,null,"May"]
[null,null,null,null,null,null,null,null,null,null,"Jun"]
[null,null,null,null,null,null,null,null,null,null,"Jul"]
[null,null,null,null,null,null,null,null,null,null,"Aug"]
[null,null,null,null,null,null,null,null,null,null,"Sep"]
[null,null,null,null,null,null,null,null,null,null,"Oct"]
[null,null,null,null,null,null,null,null,null,null,"Nov"]
["Comments :",null,null,null,null,null,null,null,null,null,"Dec"]
["An indicated ELV value of zero in the table above means that no ammonia limit is/was set in the permit.   \n",null,null,null,null,null,null,null,null,null,"Annual",{"$f":"AVERAGE(L37:L48)","v":{"$error":"#DIV/0!"}},{"$f":"MAX(M37:M48)","v":0},{"$f":"AVERAGE(N37:N48)","v":{"$error":"#DIV/0!"}},{"$f":"MAX(O37:O48)","v":0}]
[]
[null,null,null,null,null,null,null,null,null,{"$f":"+A5","v":2025},"mg/Nm3","Monthly mean of half-hourly averages","Highest half- hourly average","Monthly mean of  daily averages","Highest daily average"]
[null,null,null,null,null,null,null,null,null,"A4","Jan"]
[null,null,null,null,null,null,null,null,null,null,"Feb"]
[null,null,null,null,null,null,null,null,null,null,"Mar"]
[null,null,null,null,null,null,null,null,null,null,"Apr"]
[null,null,null,null,null,null,null,null,null,null,"May"]
[null,null,null,null,null,null,null,null,null,null,"Jun"]
[null,null,null,null,null,null,null,null,null,null,"Jul"]
[null,null,null,null,null,null,null,null,null,null,"Aug"]
[null,null,null,null,null,null,null,null,null,null,"Sep"]
[null,null,null,null,null,null,null,null,null,null,"Oct"]
[null,null,null,null,null,null,null,null,null,null,"Nov"]
[null,null,null,null,null,null,null,null,null,null,"Dec"]
[null,null,null,null,null,null,null,null,null,null,"Annual",{"$f":"AVERAGE(L52:L63)","v":{"$error":"#DIV/0!"}},{"$f":"MAX(M52:M63)","v":0},{"$f":"AVERAGE(N52:N63)","v":{"$error":"#DIV/0!"}},{"$f":"MAX(O52:O63)","v":0}]
[]
[null,null,null,null,null,null,null,null,null,{"$f":"+A5","v":2025},"mg/Nm3","Monthly mean of half-hourly averages","Highest half- hourly average","Monthly mean of  daily averages","Highest daily average"]
[null,null,null,null,null,null,null,null,null,"A5","Jan"]
[null,null,null,null,null,null,null,null,null,null,"Feb"]
[null,null,null,null,null,null,null,null,null,null,"Mar"]
[null,null,null,null,null,null,null,null,null,null,"Apr"]
[null,null,null,null,null,null,null,null,null,null,"May"]
[null,null,null,null,null,null,null,null,null,null,"Jun"]
[null,null,null,null,null,null,null,null,null,null,"Jul"]
[null,null,null,null,null,null,null,null,null,null,"Aug"]
[null,null,null,null,null,null,null,null,null,null,"Sep"]
[null,null,null,null,null,null,null,null,null,null,"Oct"]
[null,null,null,null,null,null,null,null,null,null,"Nov"]
[null,null,null,null,null,null,null,null,null,null,"Dec"]
[null,null,null,null,null,null,null,null,null,null,"Annual",{"$f":"AVERAGE(L67:L78)","v":{"$error":"#DIV/0!"}},{"$f":"MAX(M67:M78)","v":0},{"$f":"AVERAGE(N67:N78)","v":{"$error":"#DIV/0!"}},{"$f":"MAX(O67:O78)","v":0}]

{"sheet":"Template changes log","index":22,"n_rows":23,"n_cols":3,"rows_kept":23,"cut":false,"hidden":false,"merged":[]}
["Log of changes to template (Environment Agency use only)"]
[]
["Date","Description of change","New version number and date"]
["2024-01-16","Air (periodic) tab: corrected default O2 reference from 6 to 11% ","Version 23.5a (for incinerators) - 16/01/2024"]
["2024-09-23","Air (periodic) tab: corrected symbol for Thallium to Tl"]
["2024-09-23","Air (periodic) tab: removed last year's references to different emission limit values applying from 03/12/23 and updated all relevant ELVs"]
["2024-09-23","Tabs for continuously monitored pollutants (HCl, SO2 etc.): changed terminology in table headings to improve clarity"]
["2024-09-23","Tabs for continuously monitored pollutants (HCl, SO2 etc.): removed last year's references to different emission limit values applying from 03/12/23 and updated all relevant ELVs"]
["2024-09-23","Perf 1 tab: updated formula for water usage to report m3 rather than litres and corrected error with formula copying operator name"]
["2024-09-23","Operational Summary tab: table added on start-ups and shut-downs"]
["2024-09-23","Operational Summary tab: table added on dioxins and mercury protocols"]
["2024-09-23","Operational Summary tab: table added on AST, QAL 2 and calibration functions"]
["2024-09-23","CO2 N2O tab: various changes made to notes to reflect the fact that most plants should now have calibrated CEMS and flow meters + some have C14 samplers and more up to date industry data","Version 24a (for incinerators) - 23/09/24"]
["2024-11-08","CO2 N2O tab: Changed the N2O CO2 equivalence factor from 298 to 265 in line with recently updated government greenhouse gas figures: https://www.gov.uk/government/publications/greenhouse-gas-reporting-conversion-factors-2024"]
["2024-11-08","CO2 N2O tab: Added an additional requirement for municipal EfW plants to state the yearly average biogenic percentage of the waste by mass, and reference to a document which sets out a methodology for calculating NCV of waste from the results of C14 sampling."]
["2024-11-08","Permit Compliance tab: Two additional columns added + explanatory notes to the table entitled \"Summary of non-compliances under the permit\" to allow CCS scores to be stated where relevant. "]
["2024-11-08","Residue Quality tab: Note added explaining application of TOC and LOI limits and asking operators to report both metrics where measured. ","Version 24.1a (for incinerators) - 08/11/24"]
["2024-11-27","Operational Summary tab: table added on start-ups and shut-downs","Version 24.2a (for incinerators) - 27/11/24"]
["2025-11-27","Cover Page: Print as PDF and Print Report and pdf buttons deleted and blank columns removed; contents page deleted","Version 25.1a (for incinerators) - 27/11/25"]
["2025-11-27","Residue Quality tab renamed to \"Residues\", and Summary of residue handling table moved from Operational Summary tab to Residues tab."]
["2025-11-27","Various changes made to the Operational Data tab including\n•\tReformatting of the rows under the Operational data heading (Rows 3-8) to make it clearer what information is required. \n•\tAmendment of the rows under the Energy Usage / Export heading (Rows 26-32) to calculate an “indicative parasitic load” (now excluding energy imported)\n•\tAmendment of the unit for gas usage from cubic feet to cubic metres (Row 50) \n•\tSome amendments to the first 2 notes and other minor edits\n•\tDeleted \"Overall Availability, mean avg. of all lines, hrs\" row"]
["2025-11-27","Operational Summary tab: Note added requiring all emergency shut-downs be listed, irrespective of whether or not they were reportable. "]
["2025-11-27","CO2 N2O tab: Note added to ask operators to ensure that relevant data reported here matches that which will be submitted under the Pollution Inventory"]